Workbook

Sheet DadosTemp
A1: ANO | B1: MÊS | C1: DIA | D1: TMED | E1: Aleatório | G1: Média | H1: =AVERAGE(D2:D5277) -> 21.63965831
A2: 2012 | B2: 2 | C2: 16 | D2: 25.74 | E2: 0.0003382922787
A3: 2001 | B3: 2 | C3: 10 | D3: 22.88 | E3: 0.000682775263
A4: 2003 | B4: 4 | C4: 10 | D4: 21.19 | E4: 0.0007911869368
A5: 2004 | B5: 1 | C5: 27 | D5: 21.39 | E5: 0.0008032606004
A6: 2014 | B6: 1 | C6: 23 | D6: 26.74 | E6: 0.0008929135535
A7: 2003 | B7: 4 | C7: 13 | D7: 18.02 | E7: 0.001227838956
A8: 2001 | B8: 1 | C8: 16 | D8: 25.86 | E8: 0.001324204995
A9: 2003 | B9: 6 | C9: 15 | D9: 19.86 | E9: 0.001443233996
A10: 2002 | B10: 12 | C10: 11 | D10: 22.8 | E10: 0.002036769837
A11: 2006 | B11: 11 | C11: 16 | D11: 24.29 | E11: 0.002037300105
A12: 2001 | B12: 12 | C12: 22 | D12: 22.99 | E12: 0.002039425414
A13: 2004 | B13: 8 | C13: 19 | D13: 15.22 | E13: 0.002319509188
A14: 2013 | B14: 1 | C14: 17 | D14: 22.84 | E14: 0.002596359813
A15: 2000 | B15: 2 | C15: 16 | D15: 23.27 | E15: 0.002667555772
A16: 2013 | B16: 11 | C16: 30 | D16: 26.75 | E16: 0.002806609303
A17: 2001 | B17: 8 | C17: 18 | D17: 19.72 | E17: 0.003015113018
A18: 2004 | B18: 5 | C18: 29 | D18: 15.66 | E18: 0.003371767244
A19: 2003 | B19: 2 | C19: 1 | D19: 25.14 | E19: 0.003407203593
A20: 2008 | B20: 6 | C20: 18 | D20: 14.37 | E20: 0.003482143968
A21: 2000 | B21: 9 | C21: 23 | D21: 23.72 | E21: 0.00349356562
A22: 2004 | B22: 2 | C22: 27 | D22: 21.34 | E22: 0.003734476589
A23: 2003 | B23: 12 | C23: 20 | D23: 25.17 | E23: 0.00397119217
A24: 2001 | B24: 9 | C24: 17 | D24: 13.64 | E24: 0.003990923518
A25: 2010 | B25: 11 | C25: 16 | D25: 19.85 | E25: 0.004325336864
A26: 2008 | B26: 1 | C26: 25 | D26: 21.88 | E26: 0.004630620715
A27: 2012 | B27: 7 | C27: 3 | D27: 19.71 | E27: 0.004673792234
A28: 2007 | B28: 5 | C28: 16 | D28: 20.14 | E28: 0.00470112223
A29: 2009 | B29: 2 | C29: 8 | D29: 23.54 | E29: 0.00538537851
A30: 2000 | B30: 12 | C30: 6 | D30: 22.6 | E30: 0.005703354072
A31: 2011 | B31: 2 | C31: 22 | D31: 26.11 | E31: 0.006455335046
A32: 2012 | B32: 7 | C32: 12 | D32: 18.54 | E32: 0.006485322545
A33: 2007 | B33: 11 | C33: 20 | D33: 23.56 | E33: 0.006535563035
A34: 2009 | B34: 4 | C34: 10 | D34: 23.27 | E34: 0.006602082407
A35: 2004 | B35: 4 | C35: 8 | D35: 23.82 | E35: 0.006833115025
A36: 2008 | B36: 4 | C36: 1 | D36: 22.1 | E36: 0.007203349591
A37: 2000 | B37: 5 | C37: 15 | D37: 19.03 | E37: 0.007369733326
A38: 2010 | B38: 6 | C38: 22 | D38: 17.59 | E38: 0.007552889512
A39: 2001 | B39: 5 | C39: 13 | D39: 18.46 | E39: 0.007967567424
A40: 2007 | B40: 9 | C40: 4 | D40: 23.82 | E40: 0.008498437463
A41: 2006 | B41: 11 | C41: 4 | D41: 24.82 | E41: 0.00850677121
A42: 2003 | B42: 9 | C42: 12 | D42: 17.88 | E42: 0.008547715457
A43: 2002 | B43: 10 | C43: 24 | D43: 24.88 | E43: 0.008566180611
A44: 2001 | B44: 4 | C44: 16 | D44: 22.15 | E44: 0.008725617176
A45: 2006 | B45: 2 | C45: 18 | D45: 23.19 | E45: 0.00877467709
A46: 2004 | B46: 9 | C46: 5 | D46: 22.47 | E46: 0.008843461754
A47: 2001 | B47: 2 | C47: 3 | D47: 25.78 | E47: 0.008974273487
A48: 2012 | B48: 4 | C48: 14 | D48: 25.86 | E48: 0.009370497826
A49: 2003 | B49: 5 | C49: 17 | D49: 20.06 | E49: 0.009776084199
A50: 2010 | B50: 8 | C50: 13 | D50: 22.71 | E50: 0.0098017656
A51: 2002 | B51: 4 | C51: 24 | D51: 23.31 | E51: 0.01012748771
A52: 2001 | B52: 10 | C52: 13 | D52: 22.5 | E52: 0.01021030136
A53: 2006 | B53: 10 | C53: 31 | D53: 26.86 | E53: 0.01062680889
A54: 2005 | B54: 1 | C54: 24 | D54: 24.73 | E54: 0.01096570841
A55: 2012 | B55: 10 | C55: 30 | D55: 29.67 | E55: 0.01122995338
A56: 2013 | B56: 8 | C56: 11 | D56: 13.21 | E56: 0.01147542476
A57: 2014 | B57: 6 | C57: 22 | D57: 17.17 | E57: 0.011536103
A58: 2000 | B58: 2 | C58: 14 | D58: 25.372 | E58: 0.01159911978
A59: 2014 | B59: 5 | C59: 19 | D59: 20.34 | E59: 0.01183997659
A60: 2004 | B60: 4 | C60: 6 | D60: 22.5 | E60: 0.01199420677
A61: 2005 | B61: 10 | C61: 2 | D61: 19.36 | E61: 0.01220626032
A62: 2008 | B62: 12 | C62: 22 | D62: 22.1 | E62: 0.01222649638
A63: 2000 | B63: 11 | C63: 3 | D63: 23.99 | E63: 0.01223313872
A64: 2010 | B64: 2 | C64: 8 | D64: 26.19 | E64: 0.01224077299
A65: 2010 | B65: 7 | C65: 14 | D65: 15.53 | E65: 0.01236353976
A66: 2009 | B66: 3 | C66: 1 | D66: 26.99 | E66: 0.01261408204
A67: 2008 | B67: 3 | C67: 12 | D67: 22.79 | E67: 0.01272917948
A68: 2007 | B68: 2 | C68: 9 | D68: 23.62 | E68: 0.01292661465
A69: 2001 | B69: 8 | C69: 16 | D69: 19.08 | E69: 0.0130208092
A70: 2012 | B70: 6 | C70: 13 | D70: 18.83 | E70: 0.01320975003
A71: 2003 | B71: 1 | C71: 7 | D71: 24.82 | E71: 0.01339825213
A72: 2005 | B72: 6 | C72: 18 | D72: 18.27 | E72: 0.01348064969
A73: 2007 | B73: 7 | C73: 8 | D73: 21.16 | E73: 0.0138256199
A74: 2004 | B74: 8 | C74: 4 | D74: 19.27 | E74: 0.01395898179
A75: 2010 | B75: 1 | C75: 4 | D75: 26.6 | E75: 0.01424486592
A76: 2000 | B76: 12 | C76: 7 | D76: 23 | E76: 0.01432174101
A77: 2007 | B77: 5 | C77: 12 | D77: 20.26 | E77: 0.01458818199
A78: 2001 | B78: 3 | C78: 26 | D78: 24.06 | E78: 0.01464078972
A79: 2002 | B79: 9 | C79: 2 | D79: 13.13 | E79: 0.01469911581
A80: 2012 | B80: 8 | C80: 16 | D80: 20.52 | E80: 0.01470699346
A81: 2003 | B81: 4 | C81: 7 | D81: 20.23 | E81: 0.01510388883
A82: 2009 | B82: 1 | C82: 8 | D82: 24.74 | E82: 0.01513557528
A83: 2001 | B83: 4 | C83: 25 | D83: 24.49 | E83: 0.01513603632
A84: 2012 | B84: 10 | C84: 29 | D84: 27.2 | E84: 0.01517765351
A85: 2006 | B85: 2 | C85: 27 | D85: 23.94 | E85: 0.01519598915
A86: 2006 | B86: 4 | C86: 24 | D86: 20.85 | E86: 0.01586094795
A87: 2000 | B87: 3 | C87: 12 | D87: 21.608 | E87: 0.01594383564
A88: 2003 | B88: 6 | C88: 1 | D88: 19.61 | E88: 0.01594628424
A89: 2013 | B89: 12 | C89: 1 | D89: 27 | E89: 0.01639319495
A90: 2009 | B90: 3 | C90: 18 | D90: 23.84 | E90: 0.0170026976
A91: 2008 | B91: 11 | C91: 26 | D91: 20.84 | E91: 0.01705232847
A92: 2008 | B92: 4 | C92: 12 | D92: 22.43 | E92: 0.01738051661
A93: 2002 | B93: 10 | C93: 16 | D93: 27.49 | E93: 0.01803355868
A94: 2004 | B94: 6 | C94: 15 | D94: 16.35 | E94: 0.0181191547
A95: 2012 | B95: 9 | C95: 20 | D95: 21.35 | E95: 0.01826828789
A96: 2012 | B96: 9 | C96: 6 | D96: 23.88 | E96: 0.01837828493
A97: 2012 | B97: 6 | C97: 4 | D97: 22.87 | E97: 0.01853570014
A98: 2012 | B98: 2 | C98: 25 | D98: 24.49 | E98: 0.0186739186
A99: 2013 | B99: 7 | C99: 18 | D99: 20.73 | E99: 0.01937029495
A100: 2009 | B100: 7 | C100: 17 | D100: 19.7 | E100: 0.01955062898
A101: 2009 | B101: 10 | C101: 9 | D101: 17.58 | E101: 0.01972405574
A102: 2000 | B102: 1 | C102: 12 | D102: 23.004 | E102: 0.01994323315
A103: 2010 | B103: 5 | C103: 22 | D103: 18.88 | E103: 0.0199937668
A104: 2010 | B104: 1 | C104: 15 | D104: 23.13 | E104: 0.02022115315
A105: 2011 | B105: 9 | C105: 8 | D105: 24.16 | E105: 0.02031818581
A106: 2007 | B106: 2 | C106: 7 | D106: 24.97 | E106: 0.02041448524
A107: 2006 | B107: 8 | C107: 9 | D107: 20.71 | E107: 0.02062940801
A108: 2008 | B108: 12 | C108: 10 | D108: 24.67 | E108: 0.02080044901
A109: 2012 | B109: 12 | C109: 19 | D109: 26.92 | E109: 0.02086389001
A110: 2012 | B110: 11 | C110: 21 | D110: 25.84 | E110: 0.02116461315
A111: 2003 | B111: 1 | C111: 2 | D111: 25.52 | E111: 0.02125296637
A112: 2009 | B112: 12 | C112: 8 | D112: 22.01 | E112: 0.02126410528
A113: 2001 | B113: 3 | C113: 25 | D113: 23.62 | E113: 0.0212679767
A114: 2009 | B114: 3 | C114: 6 | D114: 26.98 | E114: 0.02134872817
A115: 2012 | B115: 4 | C115: 1 | D115: 23.22 | E115: 0.02178558746
A116: 2004 | B116: 10 | C116: 1 | D116: 17.11 | E116: 0.02191714921
A117: 2004 | B117: 12 | C117: 2 | D117: 22.76 | E117: 0.02203017898
A118: 2013 | B118: 4 | C118: 6 | D118: 25.71 | E118: 0.02204048944
A119: 2013 | B119: 12 | C119: 11 | D119: 25.02 | E119: 0.02230345106
A120: 2012 | B120: 1 | C120: 11 | D120: 21.22 | E120: 0.02260410585
A121: 2005 | B121: 7 | C121: 12 | D121: 18.08 | E121: 0.02286140007
A122: 2008 | B122: 9 | C122: 26 | D122: 18.89 | E122: 0.02300793826
A123: 2002 | B123: 12 | C123: 6 | D123: 24.94 | E123: 0.02312514331
A124: 2002 | B124: 10 | C124: 26 | D124: 25.06 | E124: 0.02333807701
A125: 2004 | B125: 1 | C125: 21 | D125: 21.7 | E125: 0.0237570473
A126: 2004 | B126: 4 | C126: 21 | D126: 22.46 | E126: 0.02399417288
A127: 2004 | B127: 1 | C127: 4 | D127: 22.68 | E127: 0.02481208553
A128: 2000 | B128: 5 | C128: 22 | D128: 19.07 | E128: 0.02513989171
A129: 2010 | B129: 12 | C129: 9 | D129: 26.08 | E129: 0.02533173689
A130: 2011 | B130: 1 | C130: 15 | D130: 24.85 | E130: 0.02548272233
A131: 2009 | B131: 12 | C131: 24 | D131: 23.92 | E131: 0.0255842633
A132: 2009 | B132: 8 | C132: 29 | D132: 20.96 | E132: 0.02624819336
A133: 2001 | B133: 2 | C133: 11 | D133: 24.51 | E133: 0.02647247825
A134: 2012 | B134: 6 | C134: 8 | D134: 15.02 | E134: 0.02662979963
A135: 2012 | B135: 7 | C135: 5 | D135: 19.16 | E135: 0.02716537863
A136: 2004 | B136: 5 | C136: 3 | D136: 22.12 | E136: 0.02724527
A137: 2011 | B137: 12 | C137: 11 | D137: 22.52 | E137: 0.02726206357
A138: 2007 | B138: 11 | C138: 10 | D138: 22.15 | E138: 0.02774406312
A139: 2001 | B139: 11 | C139: 8 | D139: 26.34 | E139: 0.02791184505
A140: 2000 | B140: 11 | C140: 2 | D140: 24.94 | E140: 0.02793954074
A141: 2005 | B141: 10 | C141: 7 | D141: 22.85 | E141: 0.02802624535
A142: 2003 | B142: 10 | C142: 12 | D142: 18.55 | E142: 0.02840539217
A143: 2002 | B143: 6 | C143: 13 | D143: 21.16 | E143: 0.02859572527
A144: 2009 | B144: 11 | C144: 12 | D144: 25.97 | E144: 0.0286084809
A145: 2008 | B145: 3 | C145: 22 | D145: 22.11 | E145: 0.0291001467
A146: 2009 | B146: 3 | C146: 8 | D146: 26.04 | E146: 0.02948302837
A147: 2000 | B147: 1 | C147: 26 | D147: 21.892 | E147: 0.02951192876
A148: 2000 | B148: 6 | C148: 10 | D148: 18.88 | E148: 0.02951399512
A149: 2000 | B149: 6 | C149: 19 | D149: 20.98 | E149: 0.02970489665
A150: 2009 | B150: 2 | C150: 25 | D150: 21.78 | E150: 0.02977896591
A151: 2009 | B151: 12 | C151: 14 | D151: 21.03 | E151: 0.0298437405
A152: 2007 | B152: 11 | C152: 28 | D152: 22.08 | E152: 0.02999785994
A153: 2005 | B153: 1 | C153: 28 | D153: 21.34 | E153: 0.03021073371
A154: 2006 | B154: 11 | C154: 26 | D154: 22.73 | E154: 0.03056604805
A155: 2007 | B155: 8 | C155: 21 | D155: 17.86 | E155: 0.03056695655
A156: 2007 | B156: 12 | C156: 14 | D156: 20.88 | E156: 0.03076726472
A157: 2001 | B157: 7 | C157: 13 | D157: 14.09 | E157: 0.03095680905
A158: 2001 | B158: 7 | C158: 8 | D158: 18.97 | E158: 0.03107720225
A159: 2004 | B159: 7 | C159: 3 | D159: 19.64 | E159: 0.03118556428
A160: 2000 | B160: 6 | C160: 20 | D160: 20.13 | E160: 0.03119933689
A161: 2008 | B161: 7 | C161: 15 | D161: 15.68 | E161: 0.03127139464
A162: 2012 | B162: 4 | C162: 24 | D162: 20.93 | E162: 0.03127373636
A163: 2003 | B163: 3 | C163: 12 | D163: 24.04 | E163: 0.03192806318
A164: 2010 | B164: 6 | C164: 21 | D164: 20.59 | E164: 0.03226610129
A165: 2009 | B165: 1 | C165: 14 | D165: 23.46 | E165: 0.03242259314
A166: 2010 | B166: 10 | C166: 1 | D166: 20.55 | E166: 0.03295537433
A167: 2013 | B167: 10 | C167: 3 | D167: 23.7 | E167: 0.03299602125
A168: 2011 | B168: 1 | C168: 7 | D168: 23.78 | E168: 0.03300935393
A169: 2004 | B169: 3 | C169: 31 | D169: 22.07 | E169: 0.03322981863
A170: 2007 | B170: 9 | C170: 28 | D170: 20.64 | E170: 0.03326464912
A171: 2000 | B171: 1 | C171: 10 | D171: 26.415 | E171: 0.03354319922
A172: 2008 | B172: 6 | C172: 28 | D172: 17.66 | E172: 0.03382919035
A173: 2010 | B173: 3 | C173: 24 | D173: 26.22 | E173: 0.03389056613
A174: 2009 | B174: 5 | C174: 21 | D174: 18.82 | E174: 0.03434934228
A175: 2009 | B175: 12 | C175: 18 | D175: 22.74 | E175: 0.03440098236
A176: 2005 | B176: 12 | C176: 19 | D176: 22.22 | E176: 0.03462242665
A177: 2006 | B177: 11 | C177: 9 | D177: 20.35 | E177: 0.03469811971
A178: 2003 | B178: 6 | C178: 27 | D178: 17.37 | E178: 0.03506736417
A179: 2009 | B179: 7 | C179: 15 | D179: 17.33 | E179: 0.03581232115
A180: 2000 | B180: 10 | C180: 22 | D180: 25.84 | E180: 0.03611967968
A181: 2000 | B181: 10 | C181: 5 | D181: 21.43 | E181: 0.03619986043
A182: 2001 | B182: 5 | C182: 2 | D182: 23.79 | E182: 0.03621727954
A183: 2009 | B183: 2 | C183: 26 | D183: 23.23 | E183: 0.03690184967
A184: 2010 | B184: 1 | C184: 19 | D184: 23.23 | E184: 0.03710275148
A185: 2001 | B185: 8 | C185: 23 | D185: 15.77 | E185: 0.03716381948
A186: 2002 | B186: 2 | C186: 26 | D186: 22.67 | E186: 0.03748272096
A187: 2009 | B187: 1 | C187: 21 | D187: 22.67 | E187: 0.03756214424
A188: 2012 | B188: 12 | C188: 20 | D188: 26.98 | E188: 0.03772564567
A189: 2002 | B189: 4 | C189: 20 | D189: 24.12 | E189: 0.03774154768
A190: 2008 | B190: 7 | C190: 10 | D190: 15.95 | E190: 0.0377839346
A191: 2013 | B191: 3 | C191: 14 | D191: 24.8 | E191: 0.03784478761
A192: 2001 | B192: 8 | C192: 8 | D192: 18.79 | E192: 0.03803415367
A193: 2007 | B193: 3 | C193: 3 | D193: 25.84 | E193: 0.0382051242
A194: 2003 | B194: 2 | C194: 4 | D194: 24.71 | E194: 0.03871891238
A195: 2012 | B195: 4 | C195: 21 | D195: 19.95 | E195: 0.03872133733
A196: 2006 | B196: 8 | C196: 1 | D196: 15.84 | E196: 0.03878036541
A197: 2011 | B197: 11 | C197: 12 | D197: 24.78 | E197: 0.0391938791
A198: 2011 | B198: 9 | C198: 15 | D198: 21.94 | E198: 0.03961990767
A199: 2004 | B199: 7 | C199: 10 | D199: 16.13 | E199: 0.04027726251
A200: 2001 | B200: 5 | C200: 20 | D200: 16.82 | E200: 0.04033545475
... 5077 more rows

Sheet 50amostras10
A2: Média
A3: Desvio Padrão
A4: Variância
B7: 1 | C7: 2 | D7: 3 | E7: 4 | F7: 5 | G7: 6 | H7: 7 | I7: 8 | J7: 9 | K7: 10 | L7: 11 | M7: 12 | N7: 13 | O7: 14 | P7: 15 | Q7: 16 | R7: 17 | S7: 18 | T7: 19 | U7: 20 | V7: 21 | W7: 22 | X7: 23 | Y7: 24 | Z7: 25 | AA7: 26 | AB7: 27 | AC7: 28 | AD7: 29 | AE7: 30 | AF7: 31 | AG7: 32 | AH7: 33 | AI7: 34 | AJ7: 35 | AK7: 36 | AL7: 37 | AM7: 38 | AN7: 39 | AO7: 40 | AP7: 41 | AQ7: 42 | AR7: 43 | AS7: 44 | AT7: 45 | AU7: 46 | AV7: 47 | AW7: 48 | AX7: 49 | AY7: 50
B8: 20.92 | C8: 19.53 | D8: 19.69 | E8: 15.68 | F8: 19.74 | G8: 20.56 | H8: 23.25 | I8: 20.73 | J8: 16.94 | K8: 17.35 | L8: 18.29 | M8: 21.86 | N8: 18.77 | O8: 13.85 | P8: 22.72 | Q8: 25.92 | R8: 17.34 | S8: 20.9 | T8: 13.92 | U8: 20.65 | V8: 24.23 | W8: 22.3 | X8: 23.77 | Y8: 19.41 | Z8: 13.5 | AA8: 29.53 | AB8: 22.96 | AC8: 26.15 | AD8: 17.5 | AE8: 19.02 | AF8: 24.76 | AG8: 15.14 | AH8: 23.9 | AI8: 20.94 | AJ8: 21.994 | AK8: 20.15 | AL8: 17.81 | AM8: 22.89 | AN8: 21.55 | AO8: 21.18 | AP8: 23.82 | AQ8: 18.8 | AR8: 23.45 | AS8: 20.58 | AT8: 13.76 | AU8: 18.74 | AV8: 20.97 | AW8: 21.97 | AX8: 23.19 | AY8: 23.01
B9: 23.03 | C9: 19.98 | D9: 26.12 | E9: 28.85 | F9: 21.5 | G9: 17.74 | H9: 19.82 | I9: 18.09 | J9: 26.54 | K9: 20.03 | L9: 17.13 | M9: 25.59 | N9: 23.04 | O9: 20.77 | P9: 26.42 | Q9: 14.4 | R9: 19.71 | S9: 20.946 | T9: 21.31 | U9: 22.03 | V9: 25.87 | W9: 23.14 | X9: 17.85 | Y9: 23.9 | Z9: 23.75 | AA9: 22.13 | AB9: 22.08 | AC9: 21.17 | AD9: 22.88 | AE9: 25.928 | AF9: 21.89 | AG9: 19.46 | AH9: 24.17 | AI9: 27.02 | AJ9: 23.39 | AK9: 19.89 | AL9: 19.02 | AM9: 24.25 | AN9: 23.87 | AO9: 24.51 | AP9: 18.81 | AQ9: 16.85 | AR9: 26.27 | AS9: 20.45 | AT9: 15.37 | AU9: 22.12 | AV9: 19.37 | AW9: 21.08 | AX9: 18.12 | AY9: 18.59
B10: 24.02 | C10: 21.09 | D10: 15.42 | E10: 21.55 | F10: 24.01 | G10: 22.2 | H10: 19.73 | I10: 19.4 | J10: 20.6 | K10: 19.84 | L10: 25.42 | M10: 18.81 | N10: 22.69 | O10: 25.71 | P10: 26.35 | Q10: 22.8 | R10: 25.26 | S10: 19.11 | T10: 15.19 | U10: 24.18 | V10: 24.07 | W10: 21.24 | X10: 20.43 | Y10: 17.25 | Z10: 24.57 | AA10: 17.42 | AB10: 29.9 | AC10: 19.59 | AD10: 22.82 | AE10: 20.9 | AF10: 23.85 | AG10: 24.67 | AH10: 24.19 | AI10: 23.67 | AJ10: 31.02 | AK10: 23.83 | AL10: 22.32 | AM10: 22.35 | AN10: 17.31 | AO10: 24.78 | AP10: 18.37 | AQ10: 24.08 | AR10: 24.05 | AS10: 22.1 | AT10: 24.74 | AU10: 20.92 | AV10: 24.63 | AW10: 23.51 | AX10: 25.08 | AY10: 24.07
B11: 16.08 | C11: 24.05 | D11: 25.19 | E11: 15.5 | F11: 16.91 | G11: 21.68 | H11: 26.8 | I11: 26.71 | J11: 24.12 | K11: 20.51 | L11: 21.64 | M11: 24.45 | N11: 13.89 | O11: 16.69 | P11: 22.39 | Q11: 20.46 | R11: 20.21 | S11: 19.31 | T11: 24.613 | U11: 20.72 | V11: 13.68 | W11: 16.74 | X11: 16.52 | Y11: 24.33 | Z11: 22.4 | AA11: 18.97 | AB11: 19.37 | AC11: 25.07 | AD11: 20.66 | AE11: 23.04 | AF11: 20.08 | AG11: 22.61 | AH11: 25.92 | AI11: 27.28 | AJ11: 20.97 | AK11: 26.72 | AL11: 23.62 | AM11: 26.33 | AN11: 11.94 | AO11: 20.79 | AP11: 20.44 | AQ11: 16.7 | AR11: 24.86 | AS11: 21.26 | AT11: 27 | AU11: 20.35 | AV11: 20.23 | AW11: 24.52 | AX11: 21 | AY11: 15.1
B12: 13.89 | C12: 26.34 | D12: 23.5 | E12: 23.43 | F12: 24.03 | G12: 19.09 | H12: 19.56 | I12: 18.59 | J12: 26.35 | K12: 16.1 | L12: 23.55 | M12: 18.5 | N12: 21.31 | O12: 25.93 | P12: 20.72 | Q12: 20.7 | R12: 24.609 | S12: 24.11 | T12: 21.99 | U12: 20.6 | V12: 24.68 | W12: 21.37 | X12: 21.46 | Y12: 22.74 | Z12: 24.29 | AA12: 24.2 | AB12: 22.68 | AC12: 21.11 | AD12: 21.611 | AE12: 22.32 | AF12: 23.85 | AG12: 23.48 | AH12: 25.19 | AI12: 17.68 | AJ12: 20.33 | AK12: 21.2 | AL12: 25.69 | AM12: 26.72 | AN12: 22.58 | AO12: 23.12 | AP12: 12.78 | AQ12: 19.21 | AR12: 21.55 | AS12: 20.59 | AT12: 27.23 | AU12: 25.64 | AV12: 21.94 | AW12: 23.17 | AX12: 16.98 | AY12: 18.77
B13: 22.99 | C13: 20.79 | D13: 24.84 | E13: 18.28 | F13: 19.28 | G13: 19.35 | H13: 20.79 | I13: 22.39 | J13: 18.65 | K13: 24.12 | L13: 23.04 | M13: 21.2 | N13: 24.82 | O13: 21.57 | P13: 19.85 | Q13: 20.2 | R13: 13.37 | S13: 19.46 | T13: 21.99 | U13: 16.97 | V13: 14.23 | W13: 21.82 | X13: 19.85 | Y13: 20.98 | Z13: 22.58 | AA13: 22.67 | AB13: 22.79 | AC13: 25.23 | AD13: 16.74 | AE13: 18.25 | AF13: 14.21 | AG13: 16.45 | AH13: 23.46 | AI13: 19.8 | AJ13: 21.29 | AK13: 18.78 | AL13: 23.46 | AM13: 20.46 | AN13: 22.69 | AO13: 19.72 | AP13: 20.25 | AQ13: 24.06 | AR13: 22.93 | AS13: 24.32 | AT13: 25.99 | AU13: 16.11 | AV13: 23.68 | AW13: 19.98 | AX13: 20.43 | AY13: 20.02
B14: 19.18 | C14: 19.25 | D14: 25.6 | E14: 22.69 | F14: 21.02 | G14: 20.86 | H14: 20.35 | I14: 23.87 | J14: 23.8 | K14: 15.91 | L14: 15.33 | M14: 25.54 | N14: 16.25 | O14: 20.92 | P14: 25.04 | Q14: 17.27 | R14: 16.74 | S14: 22.23 | T14: 17.51 | U14: 20.42 | V14: 21.52 | W14: 24.39 | X14: 25 | Y14: 20.97 | Z14: 18.37 | AA14: 19.79 | AB14: 22.42 | AC14: 23.41 | AD14: 18.64 | AE14: 24.028 | AF14: 20.73 | AG14: 22.42 | AH14: 28.11 | AI14: 24.18 | AJ14: 18.94 | AK14: 21.11 | AL14: 24.6 | AM14: 18.71 | AN14: 22.06 | AO14: 25.97 | AP14: 24.57 | AQ14: 22.03 | AR14: 19.7 | AS14: 23.22 | AT14: 14.69 | AU14: 15.45 | AV14: 17.07 | AW14: 18.59 | AX14: 22.31 | AY14: 22.99
B15: 22.98 | C15: 18.4 | D15: 21.13 | E15: 22.77 | F15: 23.35 | G15: 22.777 | H15: 18.69 | I15: 23.33 | J15: 26.33 | K15: 17.52 | L15: 25.91 | M15: 23.07 | N15: 19.77 | O15: 13.35 | P15: 27.6 | Q15: 18.02 | R15: 23.97 | S15: 16.65 | T15: 23.35 | U15: 19.47 | V15: 19.41 | W15: 20.18 | X15: 20.75 | Y15: 21.7 | Z15: 25.35 | AA15: 19.33 | AB15: 19.78 | AC15: 20.76 | AD15: 20.87 | AE15: 27.88 | AF15: 19.85 | AG15: 23.09 | AH15: 24.58 | AI15: 23.18 | AJ15: 24.86 | AK15: 17.41 | AL15: 21.15 | AM15: 28.1 | AN15: 22.57 | AO15: 17.09 | AP15: 25.65 | AQ15: 16.36 | AR15: 16.83 | AS15: 20.21 | AT15: 23.54 | AU15: 25.57 | AV15: 26.9 | AW15: 21.19 | AX15: 23.55 | AY15: 17.75
B16: 22.06 | C16: 21.85 | D16: 16.77 | E16: 20.56 | F16: 25.95 | G16: 21.36 | H16: 18 | I16: 19.85 | J16: 28.71 | K16: 21.33 | L16: 22.92 | M16: 19.98 | N16: 21.82 | O16: 27.16 | P16: 24.49 | Q16: 25.57 | R16: 24.45 | S16: 26.27 | T16: 20.15 | U16: 21.23 | V16: 23.93 | W16: 24.02 | X16: 23.47 | Y16: 24.77 | Z16: 22.2 | AA16: 23.27 | AB16: 27.28 | AC16: 23.06 | AD16: 25.79 | AE16: 22.18 | AF16: 17.84 | AG16: 18.96 | AH16: 26.87 | AI16: 20.99 | AJ16: 20.22 | AK16: 22.34 | AL16: 13.46 | AM16: 23.804 | AN16: 24.46 | AO16: 16.29 | AP16: 18.46 | AQ16: 19.57 | AR16: 21.46 | AS16: 18.74 | AT16: 28.85 | AU16: 21.64 | AV16: 24.31 | AW16: 22.57 | AX16: 17.34 | AY16: 24.48
B17: 27.07 | C17: 19.47 | D17: 18.37 | E17: 24.43 | F17: 20.57 | G17: 28.86 | H17: 20.91 | I17: 22.84 | J17: 19.65 | K17: 23.59 | L17: 22.56 | M17: 25.66 | N17: 19.41 | O17: 21.55 | P17: 19.25 | Q17: 21.44 | R17: 19.41 | S17: 21.94 | T17: 18.95 | U17: 21.33 | V17: 23.36 | W17: 25.36 | X17: 23.466 | Y17: 22.52 | Z17: 25.7 | AA17: 23.86 | AB17: 23.34 | AC17: 22.84 | AD17: 16.4 | AE17: 20.98 | AF17: 14.5 | AG17: 24.06 | AH17: 21.62 | AI17: 27.21 | AJ17: 18.61 | AK17: 17.84 | AL17: 25.8 | AM17: 26.84 | AN17: 23.56 | AO17: 20.43 | AP17: 23.62 | AQ17: 21.69 | AR17: 20.7 | AS17: 22.15 | AT17: 24.13 | AU17: 18.46 | AV17: 20.851 | AW17: 23.78 | AX17: 24.21 | AY17: 17.53

Sheet 50amostras100
A2: Média
A3: Desvio Padrão
A4: Variância
B7: 1 | C7: 2 | D7: 3 | E7: 4 | F7: 5 | G7: 6 | H7: 7 | I7: 8 | J7: 9 | K7: 10 | L7: 11 | M7: 12 | N7: 13 | O7: 14 | P7: 15 | Q7: 16 | R7: 17 | S7: 18 | T7: 19 | U7: 20 | V7: 21 | W7: 22 | X7: 23 | Y7: 24 | Z7: 25 | AA7: 26 | AB7: 27 | AC7: 28 | AD7: 29 | AE7: 30 | AF7: 31 | AG7: 32 | AH7: 33 | AI7: 34 | AJ7: 35 | AK7: 36 | AL7: 37 | AM7: 38 | AN7: 39 | AO7: 40 | AP7: 41 | AQ7: 42 | AR7: 43 | AS7: 44 | AT7: 45 | AU7: 46 | AV7: 47 | AW7: 48 | AX7: 49 | AY7: 50
B8: 25.74 | C8: 23.004 | D8: 23.62 | E8: 24.32 | F8: 26.73 | G8: 19.32 | H8: 18.17 | I8: 13.89 | J8: 28.15 | K8: 23.45 | L8: 17.92 | M8: 22.06 | N8: 18.2 | O8: 23.95 | P8: 20.59 | Q8: 19.61 | R8: 27.55 | S8: 24.6 | T8: 25.4 | U8: 24.548 | V8: 24.087 | W8: 19.32 | X8: 22.7 | Y8: 17.68 | Z8: 21.94 | AA8: 16.84 | AB8: 20.25 | AC8: 19.37 | AD8: 27.18 | AE8: 19.26 | AF8: 22.88 | AG8: 26.23 | AH8: 22.74 | AI8: 21.16 | AJ8: 18 | AK8: 21.3 | AL8: 20.61 | AM8: 22.26 | AN8: 22.48 | AO8: 19.93 | AP8: 21.5 | AQ8: 25.93 | AR8: 20.02 | AS8: 22.84 | AT8: 13.56 | AU8: 28.06 | AV8: 22.43 | AW8: 22.59 | AX8: 25.55 | AY8: 21.92
B9: 22.88 | C9: 18.88 | D9: 24.16 | E9: 23.07 | F9: 27.91 | G9: 14.7 | H9: 19.95 | I9: 25.12 | J9: 17.77 | K9: 19.68 | L9: 16.11 | M9: 18.53 | N9: 23.64 | O9: 20.56 | P9: 21.26 | Q9: 15.22 | R9: 22.45 | S9: 14.7 | T9: 25.14 | U9: 19.45 | V9: 19.21 | W9: 23.84 | X9: 19.87 | Y9: 27.28 | Z9: 17.12 | AA9: 21.93 | AB9: 24.48 | AC9: 22.02 | AD9: 21.61 | AE9: 17.28 | AF9: 15.14 | AG9: 21.96 | AH9: 24.33 | AI9: 21.76 | AJ9: 22.68 | AK9: 21.54 | AL9: 23.02 | AM9: 23.14 | AN9: 24.841 | AO9: 18.15 | AP9: 21.01 | AQ9: 16.69 | AR9: 23.66 | AS9: 23.31 | AT9: 26.22 | AU9: 16.77 | AV9: 25.66 | AW9: 21.53 | AX9: 22.94 | AY9: 23.9
B10: 21.19 | C10: 23.13 | D10: 19.99 | E10: 28.46 | F10: 27.75 | G10: 20.49 | H10: 26.04 | I10: 25 | J10: 26.03 | K10: 22.63 | L10: 21.33 | M10: 17.8 | N10: 18.8 | O10: 24.06 | P10: 22.1 | Q10: 15.23 | R10: 25.83 | S10: 23.86 | T10: 23.33 | U10: 18.52 | V10: 17.59 | W10: 24.44 | X10: 15.99 | Y10: 23.67 | Z10: 22.17 | AA10: 18.4 | AB10: 17.84 | AC10: 20.085 | AD10: 25.62 | AE10: 15.8 | AF10: 15.18 | AG10: 24.05 | AH10: 17.25 | AI10: 18.83 | AJ10: 20.24 | AK10: 22.63 | AL10: 18.35 | AM10: 24.5 | AN10: 17.73 | AO10: 22.32 | AP10: 23.23 | AQ10: 25.71 | AR10: 22.88 | AS10: 24.11 | AT10: 16.42 | AU10: 20.66 | AV10: 23.34 | AW10: 24.75 | AX10: 23.304 | AY10: 19.7
B11: 21.39 | C11: 24.16 | D11: 21.9 | E11: 22.26 | F11: 20.26 | G11: 23.24 | H11: 20.4 | I11: 21.75 | J11: 20.89 | K11: 23.4 | L11: 25.06 | M11: 22.36 | N11: 24.09 | O11: 19.29 | P11: 20.45 | Q11: 25.38 | R11: 18.21 | S11: 20.09 | T11: 23.45 | U11: 21.87 | V11: 22.29 | W11: 23.37 | X11: 19.12 | Y11: 27.02 | Z11: 24.41 | AA11: 23.32 | AB11: 22.21 | AC11: 23.02 | AD11: 21.28 | AE11: 23.52 | AF11: 22.56 | AG11: 23.54 | AH11: 23.9 | AI11: 21.68 | AJ11: 22.27 | AK11: 22.57 | AL11: 22.48 | AM11: 23.56 | AN11: 23.31 | AO11: 20.2 | AP11: 21.9 | AQ11: 20.77 | AR11: 22.55 | AS11: 19.23 | AT11: 21.22 | AU11: 20.45 | AV11: 21.74 | AW11: 20.06 | AX11: 28.67 | AY11: 21.03
B12: 26.74 | C12: 24.97 | D12: 16.57 | E12: 22.86 | F12: 21.87 | G12: 18.86 | H12: 25.29 | I12: 20.9 | J12: 23.99 | K12: 27.08 | L12: 24.04 | M12: 26.84 | N12: 15.21 | O12: 20.68 | P12: 20.58 | Q12: 23.47 | R12: 23.32 | S12: 28.98 | T12: 14.83 | U12: 22.57 | V12: 18.53 | W12: 23.28 | X12: 14.76 | Y12: 20.94 | Z12: 22.97 | AA12: 22.81 | AB12: 19.44 | AC12: 23.57 | AD12: 25.42 | AE12: 23.97 | AF12: 24.84 | AG12: 23.19 | AH12: 19.41 | AI12: 26.52 | AJ12: 25.69 | AK12: 23.47 | AL12: 24.06 | AM12: 19.3 | AN12: 25.8 | AO12: 20.55 | AP12: 21.17 | AQ12: 13.85 | AR12: 25.49 | AS12: 25.13 | AT12: 24.123 | AU12: 26.92 | AV12: 23.79 | AW12: 20.18 | AX12: 22.69 | AY12: 17.67
B13: 18.02 | C13: 20.71 | D13: 22.791 | E13: 21.61 | F13: 23.38 | G13: 24.13 | H13: 17.53 | I13: 20.37 | J13: 13.5 | K13: 25.96 | L13: 17.58 | M13: 22.54 | N13: 17.51 | O13: 24.13 | P13: 26.37 | Q13: 22.15 | R13: 23.22 | S13: 19.12 | T13: 24.56 | U13: 15.41 | V13: 25 | W13: 26.33 | X13: 18.61 | Y13: 23.186 | Z13: 17.8 | AA13: 14.92 | AB13: 23.25 | AC13: 22.6 | AD13: 19.19 | AE13: 23.57 | AF13: 16.99 | AG13: 25.7 | AH13: 27.34 | AI13: 25.02 | AJ13: 12.71 | AK13: 18.86 | AL13: 22.86 | AM13: 18.086 | AN13: 24.84 | AO13: 20.89 | AP13: 19.25 | AQ13: 20.44 | AR13: 21.96 | AS13: 24.19 | AT13: 24.62 | AU13: 23.85 | AV13: 21.85 | AW13: 18.96 | AX13: 23.05 | AY13: 20.57
B14: 25.86 | C14: 24.67 | D14: 25 | E14: 26.58 | F14: 26.78 | G14: 22.73 | H14: 23.7 | I14: 13.76 | J14: 26.9 | K14: 25.13 | L14: 15.12 | M14: 22.71 | N14: 25.38 | O14: 28.85 | P14: 18.25 | Q14: 25.1 | R14: 18.29 | S14: 14.42 | T14: 21.35 | U14: 28.24 | V14: 21.12 | W14: 24.37 | X14: 20.22 | Y14: 23.1 | Z14: 19.79 | AA14: 23.55 | AB14: 24.43 | AC14: 18.12 | AD14: 17.23 | AE14: 23.3 | AF14: 21.815 | AG14: 22.2 | AH14: 23.18 | AI14: 20.91 | AJ14: 20.51 | AK14: 23.97 | AL14: 19.57 | AM14: 27.1 | AN14: 21.987 | AO14: 25.82 | AP14: 24.49 | AQ14: 24.42 | AR14: 25.7 | AS14: 11.8 | AT14: 16.54 | AU14: 27.93 | AV14: 22.43 | AW14: 28.83 | AX14: 21.75 | AY14: 25.95
B15: 19.86 | C15: 26.92 | D15: 21.31 | E15: 21.39 | F15: 23.57 | G15: 24.65 | H15: 22.36 | I15: 16.42 | J15: 24.11 | K15: 24.27 | L15: 27.27 | M15: 23.06 | N15: 22.16 | O15: 23.54 | P15: 19.56 | Q15: 21.92 | R15: 25.04 | S15: 23.77 | T15: 20.65 | U15: 20.52 | V15: 16.06 | W15: 13.32 | X15: 24.86 | Y15: 22.88 | Z15: 22.75 | AA15: 22.07 | AB15: 26.03 | AC15: 26.37 | AD15: 25.74 | AE15: 25.73 | AF15: 18.36 | AG15: 25.35 | AH15: 25.18 | AI15: 21.39 | AJ15: 24.29 | AK15: 25.16 | AL15: 22.09 | AM15: 16.57 | AN15: 26.44 | AO15: 24.79 | AP15: 27.6 | AQ15: 24.43 | AR15: 23.06 | AS15: 20.77 | AT15: 14.3 | AU15: 20.3 | AV15: 22.49 | AW15: 19.98 | AX15: 26.5 | AY15: 23.35
B16: 22.8 | C16: 25.84 | D16: 21.752 | E16: 23.508 | F16: 24.41 | G16: 20.95 | H16: 16.64 | I16: 22.39 | J16: 20.04 | K16: 21.92 | L16: 12.83 | M16: 22.657 | N16: 21.63 | O16: 14.69 | P16: 18.77 | Q16: 19.55 | R16: 18.31 | S16: 19.34 | T16: 22.46 | U16: 24.05 | V16: 24.78 | W16: 20.01 | X16: 18.94 | Y16: 18.54 | Z16: 26.28 | AA16: 20.31 | AB16: 21.31 | AC16: 24.17 | AD16: 14.69 | AE16: 20.19 | AF16: 24.92 | AG16: 18.37 | AH16: 17.65 | AI16: 19.77 | AJ16: 21.06 | AK16: 20.22 | AL16: 24.56 | AM16: 25.58 | AN16: 21.47 | AO16: 24.2 | AP16: 25.04 | AQ16: 21.88 | AR16: 18.22 | AS16: 26.94 | AT16: 24.49 | AU16: 23.04 | AV16: 23.99 | AW16: 22.19 | AX16: 22.37 | AY16: 21.02
B17: 24.29 | C17: 25.52 | D17: 24.22 | E17: 24.52 | F17: 16.7 | G17: 23.35 | H17: 23.43 | I17: 18.53 | J17: 20.42 | K17: 24.32 | L17: 17.63 | M17: 23.05 | N17: 18.09 | O17: 25.99 | P17: 23.66 | Q17: 23.43 | R17: 18.58 | S17: 23.74 | T17: 15.53 | U17: 21.11 | V17: 20.23 | W17: 26.55 | X17: 21.29 | Y17: 22.47 | Z17: 20.35 | AA17: 16.1 | AB17: 27.95 | AC17: 17.04 | AD17: 22.96 | AE17: 20.93 | AF17: 24.82 | AG17: 22.58 | AH17: 21.56 | AI17: 20.52 | AJ17: 25.52 | AK17: 24.28 | AL17: 22 | AM17: 17.15 | AN17: 23.894 | AO17: 18.39 | AP17: 19.85 | AQ17: 22.33 | AR17: 17.8 | AS17: 17.1 | AT17: 20.5 | AU17: 24.59 | AV17: 15.8 | AW17: 20.55 | AX17: 23.68 | AY17: 19.28
B18: 22.99 | C18: 22.01 | D18: 22.04 | E18: 23.26 | F18: 24.24 | G18: 14.64 | H18: 25.39 | I18: 18.01 | J18: 25.09 | K18: 19.11 | L18: 24.07 | M18: 25.45 | N18: 21.68 | O18: 27.23 | P18: 21.51 | Q18: 28.06 | R18: 22.63 | S18: 20.47 | T18: 24.98 | U18: 26.25 | V18: 22.75 | W18: 20.2 | X18: 20.33 | Y18: 17.63 | Z18: 17.57 | AA18: 25.63 | AB18: 23.74 | AC18: 21.36 | AD18: 18.48 | AE18: 24.3 | AF18: 21.1 | AG18: 24.29 | AH18: 18 | AI18: 25.63 | AJ18: 19.8 | AK18: 23.38 | AL18: 22.21 | AM18: 19.48 | AN18: 26.18 | AO18: 24.31 | AP18: 20.72 | AQ18: 19.3 | AR18: 17.12 | AS18: 21.12 | AT18: 26.87 | AU18: 27.47 | AV18: 17.87 | AW18: 18.6 | AX18: 19.36 | AY18: 24.03
B19: 15.22 | C19: 23.62 | D19: 18.99 | E19: 24.23 | F19: 23.47 | G19: 13.91 | H19: 23.31 | I19: 18.94 | J19: 19.97 | K19: 23.09 | L19: 26.13 | M19: 22.63 | N19: 21.81 | O19: 27 | P19: 26.39 | Q19: 18.43 | R19: 19.51 | S19: 21 | T19: 23.94 | U19: 23.29 | V19: 19.75 | W19: 18.03 | X19: 20.97 | Y19: 21.61 | Z19: 26.25 | AA19: 22.01 | AB19: 23.97 | AC19: 23.12 | AD19: 14.1 | AE19: 21.82 | AF19: 17.26 | AG19: 22.4 | AH19: 24.35 | AI19: 16.01 | AJ19: 16.97 | AK19: 19.61 | AL19: 17.55 | AM19: 25.12 | AN19: 21.35 | AO19: 19.85 | AP19: 22.39 | AQ19: 24.22 | AR19: 26.56 | AS19: 20.75 | AT19: 18.22 | AU19: 18.42 | AV19: 25.3 | AW19: 16.72 | AX19: 22.79 | AY19: 16.91
B20: 22.84 | C20: 26.98 | D20: 24.26 | E20: 26.43 | F20: 23.27 | G20: 24.95 | H20: 19.33 | I20: 20.99 | J20: 21.19 | K20: 14.87 | L20: 19.66 | M20: 19.66 | N20: 18.96 | O20: 24.74 | P20: 21.32 | Q20: 19.01 | R20: 26.06 | S20: 17.45 | T20: 20.5 | U20: 22.87 | V20: 22.88 | W20: 24.75 | X20: 31.02 | Y20: 22.54 | Z20: 18.61 | AA20: 25.76 | AB20: 22.31 | AC20: 20.59 | AD20: 22.35 | AE20: 22.7 | AF20: 23.47 | AG20: 24.57 | AH20: 25.34 | AI20: 18.84 | AJ20: 22.54 | AK20: 25.27 | AL20: 22.21 | AM20: 23.57 | AN20: 17.66 | AO20: 21.85 | AP20: 26.35 | AQ20: 25.5 | AR20: 21.57 | AS20: 26.38 | AT20: 20.34 | AU20: 23.48 | AV20: 17.42 | AW20: 18.17 | AX20: 23.69 | AY20: 24.01
B21: 23.27 | C21: 23.22 | D21: 20.85 | E21: 24.15 | F21: 26.13 | G21: 23.56 | H21: 21.73 | I21: 18.44 | J21: 24.09 | K21: 23.42 | L21: 25.4 | M21: 24.76 | N21: 23.44 | O21: 15.37 | P21: 16.44 | Q21: 22.49 | R21: 23.33 | S21: 24.8 | T21: 25.37 | U21: 22.51 | V21: 26.04 | W21: 16.17 | X21: 23.39 | Y21: 20.14 | Z21: 22.79 | AA21: 16.52 | AB21: 17.35 | AC21: 23.7 | AD21: 18.97 | AE21: 15.71 | AF21: 22.54 | AG21: 23.75 | AH21: 21.07 | AI21: 23.86 | AJ21: 24.35 | AK21: 26.86 | AL21: 23.82 | AM21: 18.99 | AN21: 17.23 | AO21: 27.16 | AP21: 26.42 | AQ21: 22.62 | AR21: 24.24 | AS21: 25.16 | AT21: 18.22 | AU21: 19.41 | AV21: 16.62 | AW21: 22.05 | AX21: 26.49 | AY21: 21.5
B22: 26.75 | C22: 17.11 | D22: 20.53 | E22: 17.46 | F22: 26.45 | G22: 23.8 | H22: 26.06 | I22: 19.38 | J22: 21.14 | K22: 23.07 | L22: 28.82 | M22: 22.99 | N22: 19.4 | O22: 13.76 | P22: 23.87 | Q22: 24.4 | R22: 21.85 | S22: 21.11 | T22: 19.1 | U22: 21.94 | V22: 23.6 | W22: 23.49 | X22: 21.994 | Y22: 20.01 | Z22: 22.39 | AA22: 20.4 | AB22: 22.29 | AC22: 23.84 | AD22: 19.42 | AE22: 23.45 | AF22: 24.73 | AG22: 13.5 | AH22: 20.18 | AI22: 19.8 | AJ22: 20.24 | AK22: 22.25 | AL22: 23.5 | AM22: 18.64 | AN22: 19.43 | AO22: 16.28 | AP22: 22.72 | AQ22: 20.55 | AR22: 18.95 | AS22: 23.73 | AT22: 23.28 | AU22: 19.67 | AV22: 23.98 | AW22: 23.12 | AX22: 25.81 | AY22: 19.74
B23: 19.72 | C23: 22.76 | D23: 25.31 | E23: 19.95 | F23: 18.92 | G23: 18.37 | H23: 22.49 | I23: 15.4 | J23: 12.67 | K23: 22.67 | L23: 24.41 | M23: 21.35 | N23: 18.46 | O23: 21 | P23: 18.1 | Q23: 19.48 | R23: 26.2 | S23: 23.39 | T23: 20.3 | U23: 24.26 | V23: 26.2 | W23: 17.84 | X23: 18.53 | Y23: 21.41 | Z23: 23.58 | AA23: 18.86 | AB23: 24.47 | AC23: 23.68 | AD23: 23.24 | AE23: 18.24 | AF23: 23.86 | AG23: 25.88 | AH23: 20.04 | AI23: 19.68 | AJ23: 27.28 | AK23: 22.95 | AL23: 24.6 | AM23: 26.67 | AN23: 20.02 | AO23: 21.44 | AP23: 18.99 | AQ23: 22.25 | AR23: 23.37 | AS23: 17.34 | AT23: 22.81 | AU23: 19.91 | AV23: 25.95 | AW23: 22.01 | AX23: 28.86 | AY23: 19.22
B24: 15.66 | C24: 25.71 | D24: 26.8 | E24: 23.73 | F24: 24.38 | G24: 24.77 | H24: 24.19 | I24: 20.91 | J24: 20.54 | K24: 21.14 | L24: 17.25 | M24: 20.02 | N24: 21.64 | O24: 19.67 | P24: 22.17 | Q24: 17.96 | R24: 21.2 | S24: 22.72 | T24: 23.7 | U24: 19.26 | V24: 16.43 | W24: 22.34 | X24: 22.57 | Y24: 22.72 | Z24: 23.02 | AA24: 24.11 | AB24: 19.61 | AC24: 14.22 | AD24: 25.06 | AE24: 21.5 | AF24: 23.27 | AG24: 22.53 | AH24: 23.48 | AI24: 22.43 | AJ24: 24.64 | AK24: 22.13 | AL24: 23.92 | AM24: 15.77 | AN24: 24.66 | AO24: 25.57 | AP24: 25.2 | AQ24: 21.05 | AR24: 25.38 | AS24: 25.94 | AT24: 23.18 | AU24: 20.58 | AV24: 24.83 | AW24: 14.15 | AX24: 21.36 | AY24: 25.683
B25: 25.14 | C25: 25.02 | D25: 27.01 | E25: 19.22 | F25: 17.36 | G25: 21.5 | H25: 21.35 | I25: 23.17 | J25: 26.34 | K25: 25.29 | L25: 18.96 | M25: 26.34 | N25: 25.57 | O25: 14.79 | P25: 20.71 | Q25: 23.43 | R25: 24.44 | S25: 13.98 | T25: 27.56 | U25: 20.81 | V25: 18.15 | W25: 17.41 | X25: 25.84 | Y25: 16.12 | Z25: 23.55 | AA25: 22.28 | AB25: 14.73 | AC25: 23.69 | AD25: 24.76 | AE25: 24.26 | AF25: 19.33 | AG25: 24.35 | AH25: 12.7 | AI25: 21.32 | AJ25: 17.4 | AK25: 25.15 | AL25: 21.6 | AM25: 20.32 | AN25: 24.59 | AO25: 18.02 | AP25: 20.88 | AQ25: 22.02 | AR25: 22.16 | AS25: 20.3 | AT25: 22.27 | AU25: 23.9 | AV25: 22.33 | AW25: 21.44 | AX25: 22.777 | AY25: 23.44
B26: 14.37 | C26: 21.22 | D26: 17.65 | E26: 22.53 | F26: 14.82 | G26: 27.27 | H26: 18 | I26: 18.59 | J26: 27.21 | K26: 23.64 | L26: 23.8 | M26: 22.65 | N26: 15.45 | O26: 16.58 | P26: 22.54 | Q26: 23.47 | R26: 22.02 | S26: 18.37 | T26: 19.09 | U26: 25.06 | V26: 18.64 | W26: 21.11 | X26: 17.69 | Y26: 23.92 | Z26: 17.69 | AA26: 23.6 | AB26: 18.71 | AC26: 24.04 | AD26: 22.05 | AE26: 24.38 | AF26: 19.79 | AG26: 22.97 | AH26: 26.2 | AI26: 19.29 | AJ26: 24.27 | AK26: 17.42 | AL26: 20.12 | AM26: 21.6 | AN26: 18.38 | AO26: 17.27 | AP26: 25.54 | AQ26: 21.12 | AR26: 20.64 | AS26: 21.41 | AT26: 26.32 | AU26: 23.17 | AV26: 18.85 | AW26: 18.73 | AX26: 20.86 | AY26: 19
B27: 23.72 | C27: 18.08 | D27: 24.98 | E27: 26.86 | F27: 15.95 | G27: 21.81 | H27: 19.71 | I27: 19.09 | J27: 25.177 | K27: 24.33 | L27: 22.03 | M27: 21.9 | N27: 16.11 | O27: 23.76 | P27: 17.44 | Q27: 21.94 | R27: 22 | S27: 16.09 | T27: 16.48 | U27: 22.6 | V27: 16.47 | W27: 18.78 | X27: 22.22 | Y27: 20.65 | Z27: 24.58 | AA27: 20.28 | AB27: 13.81 | AC27: 19.43 | AD27: 19.41 | AE27: 22.13 | AF27: 22.67 | AG27: 22.4 | AH27: 23.69 | AI27: 22.69 | AJ27: 23.22 | AK27: 23.52 | AL27: 22.45 | AM27: 23.348 | AN27: 22.7 | AO27: 20.2 | AP27: 24.17 | AQ27: 23.84 | AR27: 22.53 | AS27: 16.2 | AT27: 22.39 | AU27: 24.19 | AV27: 24.86 | AW27: 24.43 | AX27: 19.35 | AY27: 16.53
B28: 21.34 | C28: 18.89 | D28: 24.67 | E28: 21.94 | F28: 23.07 | G28: 22.11 | H28: 19.5 | I28: 20.74 | J28: 17.22 | K28: 21.84 | L28: 21.79 | M28: 21.87 | N28: 25.64 | O28: 20.66 | P28: 14.68 | Q28: 20.4 | R28: 21.86 | S28: 26.64 | T28: 21.59 | U28: 20.66 | V28: 24 | W28: 21.2 | X28: 24.87 | Y28: 13.13 | Z28: 17.94 | AA28: 15.2 | AB28: 19.05 | AC28: 24.39 | AD28: 20.1 | AE28: 20.46 | AF28: 24.2 | AG28: 21.82 | AH28: 21.07 | AI28: 24.74 | AJ28: 24.2 | AK28: 17.28 | AL28: 21.53 | AM28: 17.62 | AN28: 17.83 | AO28: 20.7 | AP28: 24.06 | AQ28: 20.95 | AR28: 23.66 | AS28: 18.57 | AT28: 22.4 | AU28: 20.14 | AV28: 21.54 | AW28: 23.494 | AX28: 19.09 | AY28: 18.1
B29: 25.17 | C29: 24.94 | D29: 22.18 | E29: 20.69 | F29: 24.46 | G29: 25.79 | H29: 25.57 | I29: 21.14 | J29: 23.01 | K29: 24.79 | L29: 21.76 | M29: 11.82 | N29: 20.35 | O29: 14.84 | P29: 20.62 | Q29: 15.74 | R29: 21.85 | S29: 24.05 | T29: 20.44 | U29: 25.32 | V29: 25.3 | W29: 26.72 | X29: 23.35 | Y29: 26.85 | Z29: 22.48 | AA29: 23.61 | AB29: 14.23 | AC29: 22.61 | AD29: 20.27 | AE29: 25.47 | AF29: 18.97 | AG29: 22.39 | AH29: 17.46 | AI29: 21.73 | AJ29: 20.92 | AK29: 22.49 | AL29: 17.49 | AM29: 23.96 | AN29: 22.48 | AO29: 20.46 | AP29: 15.22 | AQ29: 24.77 | AR29: 18.6 | AS29: 18.59 | AT29: 23.4 | AU29: 18.76 | AV29: 23.17 | AW29: 17.19 | AX29: 21.68 | AY29: 24.13
B30: 13.64 | C30: 25.06 | D30: 26.21 | E30: 25.89 | F30: 19.22 | G30: 25.04 | H30: 23.87 | I30: 22.97 | J30: 24.56 | K30: 21.14 | L30: 21.03 | M30: 15.84 | N30: 20.92 | O30: 18.35 | P30: 23.52 | Q30: 22.8 | R30: 20.5 | S30: 22.41 | T30: 26.94 | U30: 19.75 | V30: 21.02 | W30: 23.83 | X30: 19.27 | Y30: 23.25 | Z30: 21.48 | AA30: 15.94 | AB30: 22.55 | AC30: 24.34 | AD30: 16.2 | AE30: 19.4 | AF30: 17.42 | AG30: 21.1 | AH30: 23.94 | AI30: 20.21 | AJ30: 22.45 | AK30: 28.03 | AL30: 20.44 | AM30: 18.66 | AN30: 25.54 | AO30: 22.8 | AP30: 22.75 | AQ30: 23.4 | AR30: 19.09 | AS30: 23.54 | AT30: 19.71 | AU30: 27.78 | AV30: 18.92 | AW30: 23.89 | AX30: 22.2 | AY30: 23.73
B31: 19.85 | C31: 21.7 | D31: 24.55 | E31: 23.99 | F31: 17.67 | G31: 26.99 | H31: 22.21 | I31: 22.85 | J31: 22.2 | K31: 22.72 | L31: 24.2 | M31: 20.19 | N31: 22.12 | O31: 16.33 | P31: 17.52 | Q31: 22.57 | R31: 24.9 | S31: 22.45 | T31: 23.93 | U31: 15.1 | V31: 19.61 | W31: 19.89 | X31: 25.33 | Y31: 25.24 | Z31: 22.83 | AA31: 26.36 | AB31: 25 | AC31: 24.48 | AD31: 24.02 | AE31: 24.97 | AF31: 22.13 | AG31: 22.79 | AH31: 18.3376 | AI31: 20.73 | AJ31: 26.63 | AK31: 19.66 | AL31: 22.54 | AM31: 26.02 | AN31: 22.67 | AO31: 14.4 | AP31: 23.42 | AQ31: 24.75 | AR31: 25.77 | AS31: 27.3 | AT31: 25.87 | AU31: 21.45 | AV31: 19.55 | AW31: 20.38 | AX31: 17.74 | AY31: 21.75
B32: 21.88 | C32: 22.46 | D32: 22.69 | E32: 26.1 | F32: 24.06 | G32: 24.28 | H32: 26.37 | I32: 18.4 | J32: 20.19 | K32: 22.07 | L32: 22.71 | M32: 26.98 | N32: 18.74 | O32: 19.15 | P32: 18.79 | Q32: 17.01 | R32: 18.41 | S32: 22.04 | T32: 20.99 | U32: 24.84 | V32: 22.41 | W32: 20.15 | X32: 23.03 | Y32: 19.28 | Z32: 25.77 | AA32: 18.48 | AB32: 18.69 | AC32: 19.66 | AD32: 21.9 | AE32: 20.13 | AF32: 29.53 | AG32: 21.42 | AH32: 22.71 | AI32: 21.48 | AJ32: 23.28 | AK32: 18.65 | AL32: 18.55 | AM32: 27.17 | AN32: 21.91 | AO32: 25.92 | AP32: 16.58 | AQ32: 22.14 | AR32: 21.44 | AS32: 15.14 | AT32: 21.234 | AU32: 15.32 | AV32: 17.26 | AW32: 19.8 | AX32: 20.56 | AY32: 25.91
B33: 19.71 | C33: 22.68 | D33: 25.73 | E33: 12.78 | F33: 17.44 | G33: 15.64 | H33: 18.78 | I33: 24.65 | J33: 25.54 | K33: 23.83 | L33: 25.35 | M33: 20.851 | N33: 22.92 | O33: 21.07 | P33: 24.39 | Q33: 20.15 | R33: 25.7 | S33: 17.78 | T33: 23.16 | U33: 16.29 | V33: 25.8 | W33: 22.56 | X33: 16.29 | Y33: 22.22 | Z33: 24.13 | AA33: 25.44 | AB33: 22.87 | AC33: 23 | AD33: 21.35 | AE33: 23.34 | AF33: 24.33 | AG33: 25.32 | AH33: 21.94 | AI33: 17.75 | AJ33: 26.96 | AK33: 24.92 | AL33: 19.18 | AM33: 23.51 | AN33: 19.41 | AO33: 23.98 | AP33: 16.97 | AQ33: 19.18 | AR33: 21.19 | AS33: 17.56 | AT33: 20.78 | AU33: 16.31 | AV33: 19.27 | AW33: 20.91 | AX33: 23.16 | AY33: 18.73
B34: 20.14 | C34: 19.07 | D34: 21.48 | E34: 19.29 | F34: 19.72 | G34: 21.85 | H34: 23.18 | I34: 17.93 | J34: 17.51 | K34: 16.13 | L34: 23.05 | M34: 24.31 | N34: 18.94 | O34: 21.4 | P34: 22.6 | Q34: 8.57 | R34: 20.65 | S34: 13.31 | T34: 22.49 | U34: 24.43 | V34: 13.46 | W34: 18.81 | X34: 23.15 | Y34: 23.78 | Z34: 17.92 | AA34: 25.4 | AB34: 19.26 | AC34: 16.61 | AD34: 19.4 | AE34: 27.28 | AF34: 25.7 | AG34: 20.04 | AH34: 25.02 | AI34: 21.71 | AJ34: 22.81 | AK34: 15.48 | AL34: 25.05 | AM34: 21.09 | AN34: 24.45 | AO34: 21.61 | AP34: 23.11 | AQ34: 21.59 | AR34: 16.78 | AS34: 24.38 | AT34: 25.44 | AU34: 21.91 | AV34: 21.51 | AW34: 18 | AX34: 17.31 | AY34: 19.4
B35: 23.54 | C35: 26.08 | D35: 22.07 | E35: 27.7 | F35: 20.9 | G35: 24.67 | H35: 23.65 | I35: 24.18 | J35: 24.36 | K35: 23.93 | L35: 23.95 | M35: 26.9 | N35: 24.58 | O35: 24.63 | P35: 24.48 | Q35: 26.17 | R35: 23.56 | S35: 21.68 | T35: 22.38666667 | U35: 18.66 | V35: 21.15 | W35: 22.073 | X35: 22.16 | Y35: 21.31 | Z35: 24.22 | AA35: 21.62 | AB35: 21.01 | AC35: 24.28 | AD35: 17.51 | AE35: 19.78 | AF35: 21.11 | AG35: 24.06 | AH35: 23.09 | AI35: 25.01 | AJ35: 26.22 | AK35: 16.15 | AL35: 22.74 | AM35: 23.03 | AN35: 23.97 | AO35: 23.63 | AP35: 23.64 | AQ35: 20.9 | AR35: 22.51 | AS35: 19.54 | AT35: 22.61 | AU35: 13.83 | AV35: 22.04 | AW35: 18.69 | AX35: 23.11 | AY35: 16.64
B36: 22.6 | C36: 24.85 | D36: 24.22 | E36: 25.96 | F36: 18.9 | G36: 22.108 | H36: 23.02 | I36: 19.89 | J36: 20.18 | K36: 23.63 | L36: 22.64 | M36: 17.07 | N36: 21.16 | O36: 25.3 | P36: 21.39 | Q36: 20.33 | R36: 18.77 | S36: 27.34 | T36: 25.8 | U36: 20.36 | V36: 24.6 | W36: 19.53 | X36: 20.21 | Y36: 22.12 | Z36: 17.43 | AA36: 26.13 | AB36: 19.005 | AC36: 22.54 | AD36: 19.67 | AE36: 22.42 | AF36: 21.27 | AG36: 27.5 | AH36: 25.98 | AI36: 23.39 | AJ36: 26.09 | AK36: 23.02 | AL36: 24.14 | AM36: 20.55 | AN36: 16.74 | AO36: 22.84 | AP36: 18.88 | AQ36: 19.09 | AR36: 19.85 | AS36: 26.33 | AT36: 14.95 | AU36: 24.52 | AV36: 14.26 | AW36: 20.35 | AX36: 13.63 | AY36: 18.9
B37: 26.11 | C37: 23.92 | D37: 21.79 | E37: 19.61 | F37: 20.42 | G37: 20.2 | H37: 20.25 | I37: 19.58 | J37: 22.42 | K37: 19.77 | L37: 24.77 | M37: 23.68 | N37: 23.94 | O37: 19.71 | P37: 23.84 | Q37: 18.83 | R37: 22.71 | S37: 19.75 | T37: 14.27 | U37: 22.49 | V37: 23.46 | W37: 23.16 | X37: 25.46 | Y37: 23.11 | Z37: 22.76 | AA37: 15 | AB37: 24.38 | AC37: 24.53 | AD37: 14.7 | AE37: 22.79 | AF37: 24.3 | AG37: 15.64 | AH37: 26.21 | AI37: 14.98 | AJ37: 19.8 | AK37: 17.21 | AL37: 20.26 | AM37: 16.98 | AN37: 13.37 | AO37: 24.54 | AP37: 26.46 | AQ37: 21.12 | AR37: 18.18 | AS37: 23.33 | AT37: 23.28 | AU37: 20.01 | AV37: 21.68 | AW37: 20.79 | AX37: 24.58 | AY37: 25.45
B38: 18.54 | C38: 20.96 | D38: 23.15 | E38: 14.2 | F38: 24 | G38: 21.77 | H38: 19.54 | I38: 26.37 | J38: 22.06 | K38: 23.8 | L38: 18.68 | M38: 21.94 | N38: 26.33 | O38: 17.16 | P38: 22.51 | Q38: 20.07 | R38: 20.11 | S38: 17.17 | T38: 22.98 | U38: 22.98 | V38: 25.69 | W38: 25.48 | X38: 15.22 | Y38: 24.22 | Z38: 24.78 | AA38: 20.79 | AB38: 21.7 | AC38: 24.84 | AD38: 19.28 | AE38: 22.68 | AF38: 25 | AG38: 25.11 | AH38: 28.71 | AI38: 23.963 | AJ38: 26.57 | AK38: 26.12 | AL38: 26.7 | AM38: 21.91 | AN38: 24.609 | AO38: 19.62 | AP38: 18.94 | AQ38: 24.45 | AR38: 20.83 | AS38: 19 | AT38: 13.51 | AU38: 22.1 | AV38: 24.52 | AW38: 19.56 | AX38: 21.29 | AY38: 23.81
B39: 23.56 | C39: 24.51 | D39: 22.99 | E39: 29.43 | F39: 19.36 | G39: 22.64 | H39: 24.18 | I39: 23.23 | J39: 24.14 | K39: 22.339 | L39: 27.14 | M39: 20.23 | N39: 22.63 | O39: 22.63 | P39: 11.4 | Q39: 18.45 | R39: 21.14 | S39: 20.987 | T39: 23.2 | U39: 17.97 | V39: 23.62 | W39: 14.34 | X39: 20.06 | Y39: 23.35 | Z39: 25.53 | AA39: 18.24 | AB39: 21.27 | AC39: 25.42 | AD39: 26.09 | AE39: 19.37 | AF39: 19.57 | AG39: 18.53 | AH39: 21.29 | AI39: 18.6 | AJ39: 19.85 | AK39: 19.07 | AL39: 21.05 | AM39: 19.09 | AN39: 20.21 | AO39: 17.54 | AP39: 24.01 | AQ39: 19.65 | AR39: 19.55 | AS39: 18.25 | AT39: 21.76 | AU39: 21.24 | AV39: 25.6 | AW39: 26.8 | AX39: 15.92 | AY39: 26.56
B40: 23.27 | C40: 15.02 | D40: 18.13 | E40: 23.08 | F40: 23.16 | G40: 24.28 | H40: 20.28 | I40: 22.98 | J40: 16.31 | K40: 23.61 | L40: 17.57 | M40: 24.63 | N40: 22.43 | O40: 19.38 | P40: 18.36 | Q40: 24.83 | R40: 24.6 | S40: 19.58 | T40: 22.8 | U40: 24.84 | V40: 22.32 | W40: 22.75 | X40: 25.57 | Y40: 26 | Z40: 21.23 | AA40: 24.58 | AB40: 21.36 | AC40: 27.06 | AD40: 16.67 | AE40: 29.9 | AF40: 15.05 | AG40: 22.59 | AH40: 19.59 | AI40: 23.77 | AJ40: 20.48 | AK40: 24.74 | AL40: 16.96 | AM40: 22.71 | AN40: 25.26 | AO40: 24.8 | AP40: 23.77 | AQ40: 22.66 | AR40: 17.12 | AS40: 23.66 | AT40: 24.41 | AU40: 15.14 | AV40: 21.95 | AW40: 19.73 | AX40: 18.1 | AY40: 22.16
B41: 23.82 | C41: 19.16 | D41: 26.44 | E41: 25.32 | F41: 19.79 | G41: 16.7 | H41: 18.62 | I41: 24.035 | J41: 22.57 | K41: 14.18 | L41: 20.4 | M41: 19.37 | N41: 23.984 | O41: 23.24 | P41: 25.01 | Q41: 21.34 | R41: 25.54 | S41: 19.1 | T41: 22.17 | U41: 23.94 | V41: 19.02 | W41: 21.048 | X41: 20.98 | Y41: 20.93 | Z41: 23.52 | AA41: 19.85 | AB41: 21.49 | AC41: 17.91 | AD41: 21.74 | AE41: 22.08 | AF41: 22.96 | AG41: 17.35 | AH41: 16.2 | AI41: 17.276 | AJ41: 28.6 | AK41: 24.13 | AL41: 16.1 | AM41: 21.14 | AN41: 19.71 | AO41: 20.95 | AP41: 16.21 | AQ41: 25.25 | AR41: 19.05 | AS41: 23.32 | AT41: 27.31 | AU41: 22.95 | AV41: 21.89 | AW41: 19.82 | AX41: 22.72 | AY41: 17.36
B42: 22.1 | C42: 22.12 | D42: 21.34 | E42: 22.44 | F42: 16.07 | G42: 19.19 | H42: 23.03 | I42: 23.77 | J42: 25.49 | K42: 21.292 | L42: 16.55 | M42: 20.97 | N42: 18.95 | O42: 19.96 | P42: 24.66 | Q42: 22.99 | R42: 24.63 | S42: 22.7 | T42: 22.53 | U42: 24.31 | V42: 17.81 | W42: 14.55 | X42: 17.92 | Y42: 26.39 | Z42: 19.59 | AA42: 25.12 | AB42: 23.33 | AC42: 16.79 | AD42: 24.61 | AE42: 22.96 | AF42: 23.17 | AG42: 19.42 | AH42: 18.85 | AI42: 18.86 | AJ42: 20.19 | AK42: 19.24 | AL42: 17.55 | AM42: 18.71 | AN42: 17.34 | AO42: 17.9 | AP42: 22.6 | AQ42: 19.61 | AR42: 21.76 | AS42: 20.74 | AT42: 18.04 | AU42: 21.88 | AV42: 22.85 | AW42: 23.25 | AX42: 17.35 | AY42: 21.53
B43: 19.03 | C43: 22.52 | D43: 20.26 | E43: 27.33 | F43: 24.9 | G43: 25.1 | H43: 26.68 | I43: 22.58 | J43: 21.51 | K43: 24.39 | L43: 23.78 | M43: 23.97 | N43: 27.99 | O43: 24.56 | P43: 18.13 | Q43: 17.72 | R43: 23.94 | S43: 15.31 | T43: 20.99 | U43: 26.84 | V43: 23.78 | W43: 26.1 | X43: 11.24 | Y43: 18.41 | Z43: 21.42 | AA43: 24.71 | AB43: 24.79 | AC43: 23.089 | AD43: 22.84 | AE43: 21.47 | AF43: 22.86 | AG43: 20.17 | AH43: 22.51 | AI43: 21.43 | AJ43: 18.17 | AK43: 21.97 | AL43: 19.86 | AM43: 21.94 | AN43: 26.77 | AO43: 25.34 | AP43: 25.55 | AQ43: 19.51 | AR43: 23.55 | AS43: 20.17 | AT43: 24.63 | AU43: 18.79 | AV43: 22.84 | AW43: 27.79 | AX43: 25.4 | AY43: 22.508
B44: 17.59 | C44: 22.15 | D44: 24.2 | E44: 23.98 | F44: 22.99 | G44: 20.64 | H44: 20.52 | I44: 25.19 | J44: 21.47 | K44: 20.63 | L44: 22.57 | M44: 24.4 | N44: 23.54 | O44: 24.34 | P44: 22.32 | Q44: 22.72 | R44: 21.01 | S44: 25.63 | T44: 18.85 | U44: 23.804 | V44: 23.4 | W44: 22.9 | X44: 24.9 | Y44: 22.49 | Z44: 27.8 | AA44: 18.2 | AB44: 23.39 | AC44: 16.41 | AD44: 23.06 | AE44: 24.45 | AF44: 22.85 | AG44: 22.17 | AH44: 16.88 | AI44: 24.79 | AJ44: 21.52 | AK44: 16.82 | AL44: 21.99 | AM44: 26.27 | AN44: 19.47 | AO44: 25.74 | AP44: 22.5 | AQ44: 22.58 | AR44: 20.69 | AS44: 21.99 | AT44: 23.89 | AU44: 23.86 | AV44: 19.85 | AW44: 23.36 | AX44: 26.33 | AY44: 21.28
B45: 18.46 | C45: 26.34 | D45: 18.02 | E45: 24.12 | F45: 24.07 | G45: 18.211 | H45: 12.18 | I45: 23.39 | J45: 25.094 | K45: 13.27 | L45: 21.19 | M45: 25.23 | N45: 20.19 | O45: 25.49 | P45: 23.66 | Q45: 25.74 | R45: 21.51 | S45: 22.66 | T45: 20.94 | U45: 28.1 | V45: 15.92 | W45: 19.69 | X45: 18.26 | Y45: 15.22 | Z45: 18.22 | AA45: 17.16 | AB45: 24.19 | AC45: 23.04 | AD45: 20.76 | AE45: 17.4 | AF45: 23.26 | AG45: 21.07 | AH45: 21.86 | AI45: 28.24 | AJ45: 27.32 | AK45: 24.29 | AL45: 25.65 | AM45: 16.65 | AN45: 18.34 | AO45: 24.59 | AP45: 23.81 | AQ45: 22.79 | AR45: 21.07 | AS45: 20.1 | AT45: 24.15 | AU45: 25.42 | AV45: 23.33 | AW45: 14.37 | AX45: 24.53 | AY45: 25.68
B46: 23.82 | C46: 24.94 | D46: 20.52 | E46: 23.07 | F46: 22.87 | G46: 19.03 | H46: 23.94 | I46: 21.62 | J46: 21 | K46: 15.57 | L46: 18.59 | M46: 23.69 | N46: 20.44 | O46: 23.46 | P46: 28.01 | Q46: 16.93 | R46: 20.26 | S46: 23.33 | T46: 23.06 | U46: 18.71 | V46: 19.2 | W46: 20.99 | X46: 12.79 | Y46: 23.63 | Z46: 23.23 | AA46: 23.41 | AB46: 26.35 | AC46: 24.7 | AD46: 23.41 | AE46: 22.949 | AF46: 19.28 | AG46: 26.19 | AH46: 24.33 | AI46: 20.41 | AJ46: 18.75 | AK46: 21.5 | AL46: 25.04 | AM46: 22.23 | AN46: 23.12 | AO46: 23 | AP46: 15.09 | AQ46: 19.84 | AR46: 16.75 | AS46: 22.12 | AT46: 24.67 | AU46: 19.2 | AV46: 23.87 | AW46: 11.03 | AX46: 27.71 | AY46: 25.41
B47: 24.82 | C47: 22.85 | D47: 24.49 | E47: 19.85 | F47: 19.71 | G47: 23.47 | H47: 21.66 | I47: 21.09 | J47: 18.78 | K47: 23.98 | L47: 19.98 | M47: 19.24 | N47: 17.21 | O47: 27.49 | P47: 25.65 | Q47: 17.48 | R47: 24.95 | S47: 17.56 | T47: 21.78 | U47: 20.46 | V47: 22.07 | W47: 24.79 | X47: 20.16 | Y47: 23.56 | Z47: 20.56 | AA47: 20.98 | AB47: 19.11 | AC47: 23.89 | AD47: 25.23 | AE47: 15.8 | AF47: 16.67 | AG47: 23.05 | AH47: 25.85 | AI47: 17.3 | AJ47: 22.549 | AK47: 18.65 | AL47: 18.22 | AM47: 19.46 | AN47: 23.59 | AO47: 22.33 | AP47: 18.67 | AQ47: 20.31 | AR47: 25.82 | AS47: 16.61 | AT47: 20.88 | AU47: 20.42 | AV47: 22.39 | AW47: 28.31 | AX47: 25.01 | AY47: 18.8
B48: 17.88 | C48: 18.55 | D48: 19.5 | E48: 24.4 | F48: 23.4 | G48: 19.34 | H48: 18.08 | I48: 19.63 | J48: 20.29 | K48: 22.4 | L48: 23.17 | M48: 23.76 | N48: 13.94 | O48: 27.72 | P48: 23.52 | Q48: 22.82 | R48: 25.26 | S48: 16.98 | T48: 24.58 | U48: 26.72 | V48: 21.55 | W48: 20.89 | X48: 23.34 | Y48: 21.94 | Z48: 18.81 | AA48: 12.75 | AB48: 24.72 | AC48: 25.5 | AD48: 21.11 | AE48: 14.85 | AF48: 25.7 | AG48: 20 | AH48: 24.66 | AI48: 22.13 | AJ48: 10.87 | AK48: 21.5 | AL48: 22.6 | AM48: 24.11 | AN48: 21.92 | AO48: 22.72 | AP48: 24.21 | AQ48: 13.92 | AR48: 14.8 | AS48: 25.16 | AT48: 21.99 | AU48: 24.33 | AV48: 18.59 | AW48: 23.75 | AX48: 24.53 | AY48: 26.19
B49: 24.88 | C49: 21.16 | D49: 19.73 | E49: 23.6 | F49: 25.75 | G49: 18.31 | H49: 17.15 | I49: 22.27 | J49: 23.01 | K49: 27.07 | L49: 24.52 | M49: 22.97 | N49: 17.87 | O49: 17.19 | P49: 26.97 | Q49: 17.73 | R49: 17.04 | S49: 16.48 | T49: 27.45 | U49: 26.33 | V49: 21.09 | W49: 23.5 | X49: 27.56 | Y49: 24.27 | Z49: 19.37 | AA49: 15.88 | AB49: 21.72 | AC49: 21.73 | AD49: 25.07 | AE49: 20.53 | AF49: 22.87 | AG49: 17.41 | AH49: 28.35 | AI49: 23.84 | AJ49: 20.19 | AK49: 16.97 | AL49: 24.67 | AM49: 19.31 | AN49: 24.95 | AO49: 18.83 | AP49: 18.79 | AQ49: 23.23 | AR49: 18.77 | AS49: 24.43 | AT49: 20.94 | AU49: 17.32 | AV49: 26.71 | AW49: 22.81 | AX49: 24.6 | AY49: 21.26
B50: 22.15 | C50: 25.97 | D50: 19.96 | E50: 23.75 | F50: 22.32 | G50: 20.06 | H50: 22.43 | I50: 21.34 | J50: 12.51 | K50: 24.8 | L50: 23.51 | M50: 22.38 | N50: 23.36 | O50: 17.11 | P50: 23.07 | Q50: 19.14 | R50: 21.34 | S50: 25.18 | T50: 24.05 | U50: 22.35 | V50: 18.91 | W50: 24.55 | X50: 25.85 | Y50: 23.06 | Z50: 24.07 | AA50: 19.45 | AB50: 25.6 | AC50: 21.77 | AD50: 19.59 | AE50: 25.61 | AF50: 20.93 | AG50: 18.35 | AH50: 21.55 | AI50: 22.53 | AJ50: 15.97 | AK50: 20.12 | AL50: 21.15 | AM50: 19.11 | AN50: 25.96 | AO50: 17.77 | AP50: 26.36 | AQ50: 21.63 | AR50: 23.98 | AS50: 15.3 | AT50: 20.08 | AU50: 22.14 | AV50: 19.4 | AW50: 22.32 | AX50: 20.13 | AY50: 24.71
B51: 23.19 | C51: 22.11 | D51: 22.41 | E51: 20.72 | F51: 21.54 | G51: 23.27 | H51: 21.32 | I51: 18.93 | J51: 23.57 | K51: 23.32 | L51: 21.08 | M51: 19.83 | N51: 23.08 | O51: 25.49 | P51: 16.46 | Q51: 18.29 | R51: 26.93 | S51: 22.92 | T51: 19.73 | U51: 24.25 | V51: 21.86 | W51: 25.12 | X51: 17.97 | Y51: 17.35 | Z51: 22.92 | AA51: 23.73 | AB51: 13.33 | AC51: 11.26 | AD51: 21.17 | AE51: 25.51 | AF51: 17.95 | AG51: 23.73 | AH51: 23.22 | AI51: 17.08 | AJ51: 20.55 | AK51: 23.91 | AL51: 20.99 | AM51: 20.946 | AN51: 21.15 | AO51: 23.92 | AP51: 20.87 | AQ51: 22.32 | AR51: 21.41 | AS51: 21.86 | AT51: 26.4 | AU51: 22.6 | AV51: 18.09 | AW51: 23.69 | AX51: 20.07 | AY51: 22.8
B52: 22.47 | C52: 26.04 | D52: 20.86 | E52: 19.54 | F52: 20.81 | G52: 23.5 | H52: 21.2 | I52: 19.17 | J52: 23.12 | K52: 23.16 | L52: 21.97 | M52: 22.37 | N52: 21.58 | O52: 19.28 | P52: 18.04 | Q52: 23.57 | R52: 22.37 | S52: 19.91 | T52: 23.42 | U52: 22.89 | V52: 21.07 | W52: 25.31 | X52: 22.54 | Y52: 21.73 | Z52: 19.09 | AA52: 23.85 | AB52: 21.78 | AC52: 16.61 | AD52: 26.15 | AE52: 18.89 | AF52: 18.68 | AG52: 21.55 | AH52: 24.09 | AI52: 22.1 | AJ52: 19.14 | AK52: 23.54 | AL52: 21.18 | AM52: 20.9 | AN52: 16.81 | AO52: 24.93 | AP52: 19.78 | AQ52: 21.91 | AR52: 19.84 | AS52: 17.51 | AT52: 27.16 | AU52: 19.41 | AV52: 20.73 | AW52: 18.8 | AX52: 19.34 | AY52: 13.31
B53: 25.78 | C53: 21.892 | D53: 22.66 | E53: 22.4 | F53: 18.08 | G53: 25.48 | H53: 17.49 | I53: 18.84 | J53: 26.75 | K53: 24.21 | L53: 20.82 | M53: 23.71 | N53: 28.18 | O53: 24 | P53: 23.2 | Q53: 25.2 | R53: 25.26 | S53: 22.95 | T53: 23.56 | U53: 26.85 | V53: 14.77 | W53: 18.71 | X53: 20.43 | Y53: 22.81 | Z53: 26.44 | AA53: 20.4 | AB53: 19.22 | AC53: 16.4 | AD53: 26.02 | AE53: 19.4 | AF53: 18.48 | AG53: 23.14 | AH53: 23.81 | AI53: 19.55 | AJ53: 24.6 | AK53: 24.66 | AL53: 18.95 | AM53: 20.66 | AN53: 27.36 | AO53: 17.95 | AP53: 25.61 | AQ53: 23.64 | AR53: 20.51 | AS53: 27.26 | AT53: 21.41 | AU53: 19.65 | AV53: 23.55 | AW53: 19.12 | AX53: 27.19 | AY53: 21.84
B54: 25.86 | C54: 18.88 | D54: 21.17 | E54: 24.47 | F54: 20.42 | G54: 25.4 | H54: 18.39 | I54: 25.96 | J54: 15.85 | K54: 17.34 | L54: 23.12 | M54: 17.4 | N54: 23.08 | O54: 24.25 | P54: 23.776 | Q54: 20.88 | R54: 24.48 | S54: 16.91 | T54: 24.46 | U54: 24.28 | V54: 16.84 | W54: 21.83 | X54: 22.12 | Y54: 25.09 | Z54: 25.98 | AA54: 20.07 | AB54: 25.78 | AC54: 25.79 | AD54: 25.31 | AE54: 25.02 | AF54: 20.43 | AG54: 19.37 | AH54: 12.94 | AI54: 23.38 | AJ54: 14.62 | AK54: 22.17 | AL54: 20.15 | AM54: 17.66 | AN54: 18.414 | AO54: 24.68 | AP54: 25.88 | AQ54: 24.4 | AR54: 19.67 | AS54: 19.9 | AT54: 21.69 | AU54: 28.71 | AV54: 25.77 | AW54: 23.41 | AX54: 18.17 | AY54: 19.62
B55: 20.06 | C55: 20.98 | D55: 23.4 | E55: 21.16 | F55: 24.16 | G55: 18.13 | H55: 25.522 | I55: 26.12 | J55: 22.33 | K55: 23.55 | L55: 29.01 | M55: 26.01 | N55: 19.6 | O55: 25.28 | P55: 20.66 | Q55: 17.33 | R55: 21.51 | S55: 21.27 | T55: 22.57 | U55: 22.68 | V55: 20.89 | W55: 14.51 | X55: 21.32 | Y55: 16.7 | Z55: 20.79 | AA55: 23.63 | AB55: 22.65 | AC55: 20.87 | AD55: 24.44 | AE55: 20.52 | AF55: 22.9 | AG55: 21.45 | AH55: 25.21 | AI55: 24.28 | AJ55: 22.56 | AK55: 20.64 | AL55: 23.35 | AM55: 15.94 | AN55: 25.48 | AO55: 25.98 | AP55: 24.06 | AQ55: 23.33 | AR55: 25.43 | AS55: 24.02 | AT55: 24.2 | AU55: 26.33 | AV55: 21.98 | AW55: 21.21 | AX55: 21.18 | AY55: 23.91
B56: 22.71 | C56: 21.78 | D56: 20.45 | E56: 20.51 | F56: 25.417 | G56: 22.56 | H56: 21.72 | I56: 23.749 | J56: 22.79 | K56: 22.31 | L56: 21.56 | M56: 16.37 | N56: 19.13 | O56: 21.74 | P56: 25.34 | Q56: 15.17 | R56: 22.98 | S56: 21.29 | T56: 22.06 | U56: 23.22 | V56: 18.89 | W56: 20.51 | X56: 19.2 | Y56: 21.37 | Z56: 22.08 | AA56: 19.03 | AB56: 20.53 | AC56: 18.64 | AD56: 20.02 | AE56: 23.08 | AF56: 17.72 | AG56: 19.26 | AH56: 23.11 | AI56: 21.55 | AJ56: 24.16 | AK56: 22.55 | AL56: 17.51 | AM56: 24.12 | AN56: 17.77 | AO56: 18.62 | AP56: 23.02 | AQ56: 20 | AR56: 24.16 | AS56: 20.85 | AT56: 21.53 | AU56: 23.8 | AV56: 20.38 | AW56: 23.56 | AX56: 23.035 | AY56: 25.04
B57: 23.31 | C57: 21.03 | D57: 24.85 | E57: 19.94 | F57: 23.07 | G57: 20.02 | H57: 24.07 | I57: 23.91 | J57: 19.06 | K57: 20.43 | L57: 24.01 | M57: 20.87 | N57: 25.74 | O57: 26.33 | P57: 22.72 | Q57: 25.13 | R57: 26.3 | S57: 24.29 | T57: 22.69 | U57: 24.97 | V57: 19.48 | W57: 22.13 | X57: 16.8 | Y57: 22.81 | Z57: 23.45 | AA57: 24 | AB57: 22.22 | AC57: 16.74 | AD57: 17.1 | AE57: 19.44 | AF57: 17.37 | AG57: 14.92 | AH57: 10.56 | AI57: 24.73 | AJ57: 23.85 | AK57: 20.22 | AL57: 21.99 | AM57: 21.85 | AN57: 22.59 | AO57: 21.79 | AP57: 20.97 | AQ57: 18.47 | AR57: 21.87 | AS57: 24.92 | AT57: 17.61 | AU57: 18.65 | AV57: 24.25 | AW57: 20.17 | AX57: 17.2 | AY57: 15.95
B58: 22.5 | C58: 22.08 | D58: 18.15 | E58: 23.45 | F58: 23.45 | G58: 19.42 | H58: 22.71 | I58: 20.19 | J58: 26.39 | K58: 16.98 | L58: 16.27 | M58: 22.03 | N58: 22.66 | O58: 23.02 | P58: 25.88 | Q58: 26.39 | R58: 18.3 | S58: 22.22 | T58: 22.58 | U58: 17.8 | V58: 15.96 | W58: 22.07 | X58: 15.27 | Y58: 25.04 | Z58: 23.02 | AA58: 17.82 | AB58: 19.31 | AC58: 21.611 | AD58: 16.91 | AE58: 22.78 | AF58: 23.61 | AG58: 25.33 | AH58: 26.13 | AI58: 20.91 | AJ58: 23.77 | AK58: 15.34 | AL58: 21.99 | AM58: 21.78 | AN58: 24.11 | AO58: 18.97 | AP58: 22.76 | AQ58: 23.7 | AR58: 23.04 | AS58: 21.93 | AT58: 24.55 | AU58: 26.35 | AV58: 21.08 | AW58: 19.47 | AX58: 27.01 | AY58: 18.67
B59: 26.86 | C59: 21.34 | D59: 19.19 | E59: 16.89 | F59: 20.15 | G59: 17.49 | H59: 26.17 | I59: 17.52 | J59: 22.77 | K59: 21 | L59: 17.88 | M59: 25.06 | N59: 22.13 | O59: 21.92 | P59: 21.23 | Q59: 24.37 | R59: 20.98 | S59: 19.15 | T59: 11.94 | U59: 13.56 | V59: 23.89 | W59: 16.77 | X59: 22.873 | Y59: 21.91 | Z59: 20.18 | AA59: 20.83 | AB59: 24.66 | AC59: 20.66 | AD59: 26.07 | AE59: 23.41 | AF59: 27.16 | AG59: 18.4 | AH59: 20.92 | AI59: 22.32 | AJ59: 21.64 | AK59: 23.3 | AL59: 24.613 | AM59: 25.25 | AN59: 24.42 | AO59: 25.39 | AP59: 22.26 | AQ59: 13.85 | AR59: 23.85 | AS59: 21.49 | AT59: 19.76 | AU59: 24.12 | AV59: 19.38 | AW59: 22.44 | AX59: 20 | AY59: 25.72
B60: 24.73 | C60: 22.73 | D60: 21.43 | E60: 13.4 | F60: 21.72 | G60: 21.59 | H60: 23.03 | I60: 19.75 | J60: 21.65 | K60: 25.08 | L60: 20.34 | M60: 17.65 | N60: 24.65 | O60: 24.43 | P60: 12.95 | Q60: 20.76 | R60: 18.65 | S60: 19.63 | T60: 17.31 | U60: 23.38 | V60: 25.04 | W60: 26.31 | X60: 18.25 | Y60: 25.59 | Z60: 20.01 | AA60: 24.23 | AB60: 21.31 | AC60: 22.82 | AD60: 23.62 | AE60: 21.23 | AF60: 16.51 | AG60: 20.05 | AH60: 23.93 | AI60: 26.11 | AJ60: 23.07 | AK60: 22.57 | AL60: 15.19 | AM60: 18.41 | AN60: 19.3 | AO60: 25.2 | AP60: 23.43 | AQ60: 25.29 | AR60: 23.03 | AS60: 22.228 | AT60: 19.87 | AU60: 20.6 | AV60: 23.43 | AW60: 18.18 | AX60: 24.06 | AY60: 25.07
B61: 29.67 | C61: 17.86 | D61: 19.51 | E61: 21.83 | F61: 23.88 | G61: 22.13 | H61: 21.3 | I61: 21.92 | J61: 19.86 | K61: 18.12 | L61: 21.13 | M61: 19.33 | N61: 24.41 | O61: 26.17 | P61: 22.22 | Q61: 25.44 | R61: 21.52 | S61: 26.44 | T61: 23.87 | U61: 22.89 | V61: 24.1 | W61: 17.65 | X61: 13.81 | Y61: 23.35 | Z61: 23 | AA61: 20.6 | AB61: 18.88 | AC61: 22.88 | AD61: 24.01 | AE61: 23.69 | AF61: 20.63 | AG61: 25.1 | AH61: 19.62 | AI61: 18.25 | AJ61: 26.36 | AK61: 22.99 | AL61: 21.31 | AM61: 24.8 | AN61: 21.14 | AO61: 23.11 | AP61: 22.14 | AQ61: 24.82 | AR61: 23.96 | AS61: 22.39 | AT61: 17.04 | AU61: 26.54 | AV61: 25.95 | AW61: 14.34 | AX61: 20.51 | AY61: 19.93
B62: 13.21 | C62: 20.88 | D62: 24.07 | E62: 21.16 | F62: 20.95 | G62: 21.23 | H62: 19.19 | I62: 15.69 | J62: 21.94 | K62: 23.19 | L62: 15.33 | M62: 19.38 | N62: 24.59 | O62: 20.43 | P62: 22.73 | Q62: 14.9 | R62: 24.19 | S62: 23.69 | T62: 21.55 | U62: 16.13 | V62: 17.24 | W62: 18.62 | X62: 22.2 | Y62: 24.35 | Z62: 22.65 | AA62: 26.59 | AB62: 24.49 | AC62: 17.5 | AD62: 21.46 | AE62: 21.65 | AF62: 15.19 | AG62: 21.67 | AH62: 24.52 | AI62: 20.54 | AJ62: 24.55 | AK62: 20.39 | AL62: 13.92 | AM62: 24.5 | AN62: 21.28 | AO62: 22.22 | AP62: 16.68 | AQ62: 26.71 | AR62: 24.32 | AS62: 18.07 | AT62: 22.648 | AU62: 16.94 | AV62: 20.22 | AW62: 21.97 | AX62: 24.85 | AY62: 23.04
B63: 17.17 | C63: 14.09 | D63: 18.81 | E63: 16.91 | F63: 23.59 | G63: 23.75 | H63: 21.81 | I63: 20.77 | J63: 17.53 | K63: 16.71 | L63: 25.11 | M63: 22.8 | N63: 20.64 | O63: 21.81 | P63: 19.43 | Q63: 18.16 | R63: 23.18 | S63: 20.43 | T63: 25.01 | U63: 21.59 | V63: 24.62 | W63: 21.66 | X63: 23.51 | Y63: 21.78 | Z63: 18.99 | AA63: 17.79 | AB63: 20.98 | AC63: 22.54 | AD63: 17.51 | AE63: 15.38 | AF63: 25.34 | AG63: 21.62 | AH63: 16.72 | AI63: 20.46 | AJ63: 27.92 | AK63: 21.33 | AL63: 21.62 | AM63: 18.06 | AN63: 15.67 | AO63: 23.644 | AP63: 24.28 | AQ63: 22.93 | AR63: 20.88 | AS63: 28.27 | AT63: 23.59 | AU63: 21.66 | AV63: 22.64 | AW63: 20.45 | AX63: 20.82 | AY63: 22.65
B64: 25.372 | C64: 18.97 | D64: 20.73 | E64: 23.06 | F64: 22.22 | G64: 25.91 | H64: 22.84 | I64: 23.45 | J64: 24.48 | K64: 16.55 | L64: 19.78 | M64: 20.17 | N64: 24.68 | O64: 19.75 | P64: 23.08 | Q64: 19.54 | R64: 20.81 | S64: 16.29 | T64: 22.72 | U64: 26.01 | V64: 24.38 | W64: 22.25 | X64: 27.43 | Y64: 15.35 | Z64: 23.37 | AA64: 23.39 | AB64: 22.18 | AC64: 23.8 | AD64: 24.08 | AE64: 27.36 | AF64: 23.01 | AG64: 15.52 | AH64: 22.92 | AI64: 27.79 | AJ64: 25.19 | AK64: 21.23 | AL64: 22.74 | AM64: 19.16 | AN64: 21.73 | AO64: 16.35 | AP64: 23.75 | AQ64: 24.18 | AR64: 24.47 | AS64: 22.99 | AT64: 21.33 | AU64: 19.76 | AV64: 19.82 | AW64: 19.44 | AX64: 18.5 | AY64: 19.95
B65: 20.34 | C65: 19.64 | D65: 22.52 | E65: 22.07 | F65: 21.65 | G65: 17.36 | H65: 23.2 | I65: 22.96 | J65: 17.75 | K65: 14.22 | L65: 16.9 | M65: 13.06 | N65: 21.92 | O65: 22.86 | P65: 25.46 | Q65: 22.29 | R65: 25.5 | S65: 17.09 | T65: 22.06 | U65: 21.98 | V65: 17.93 | W65: 17.74 | X65: 18.57 | Y65: 14.92 | Z65: 21.99 | AA65: 23.8 | AB65: 27.88 | AC65: 23.47 | AD65: 21.94 | AE65: 22.56 | AF65: 24.98 | AG65: 21.36 | AH65: 24.41 | AI65: 21.6 | AJ65: 19.64 | AK65: 19.47 | AL65: 21.22 | AM65: 21.79 | AN65: 28.49 | AO65: 24.93 | AP65: 24.34 | AQ65: 15.83 | AR65: 19.36 | AS65: 19.02 | AT65: 17.52 | AU65: 20.78 | AV65: 22.31 | AW65: 22.6 | AX65: 22.08 | AY65: 17.97
B66: 22.5 | C66: 20.13 | D66: 25.56 | E66: 21.57 | F66: 22.39 | G66: 17.43 | H66: 23.38 | I66: 25.77 | J66: 22.99 | K66: 19.79 | L66: 24.27 | M66: 20.64 | N66: 26.32 | O66: 22.88 | P66: 23.99 | Q66: 22.12 | R66: 25.15 | S66: 25.97 | T66: 18.18 | U66: 19 | V66: 26.52 | W66: 20.86 | X66: 26.46 | Y66: 18.8 | Z66: 20.62 | AA66: 18.62 | AB66: 24.028 | AC66: 22.7 | AD66: 26.93 | AE66: 22.51 | AF66: 19.26 | AG66: 20.58 | AH66: 19.45 | AI66: 22.77 | AJ66: 23.35 | AK66: 20.42 | AL66: 23.79 | AM66: 17.87 | AN66: 22.57 | AO66: 23.98 | AP66: 22.61 | AQ66: 23.96 | AR66: 18.03 | AS66: 21.07 | AT66: 15.91 | AU66: 14.47 | AV66: 22.34 | AW66: 22.26 | AX66: 24.45 | AY66: 24.47
B67: 19.36 | C67: 15.68 | D67: 19.2 | E67: 19.1 | F67: 22.95 | G67: 24.98 | H67: 22.44 | I67: 22.44 | J67: 20.02 | K67: 12.8 | L67: 23.24 | M67: 21.45 | N67: 22.57 | O67: 23.58 | P67: 17.6 | Q67: 23.79 | R67: 21.8 | S67: 19.72 | T67: 20.11 | U67: 23.92 | V67: 20.66 | W67: 21.35 | X67: 19.07 | Y67: 25.19 | Z67: 25.93 | AA67: 24.12 | AB67: 18.25 | AC67: 20.71 | AD67: 23.81 | AE67: 21.43 | AF67: 23.35 | AG67: 15.56 | AH67: 24.5 | AI67: 21.43 | AJ67: 21.03 | AK67: 16.97 | AL67: 23.93 | AM67: 18.15 | AN67: 18.82 | AO67: 23.78 | AP67: 13.8 | AQ67: 19.85 | AR67: 26.01 | AS67: 24.12 | AT67: 24.12 | AU67: 20.71 | AV67: 19.89 | AW67: 19.6 | AX67: 18.91 | AY67: 23.25
B68: 22.1 | C68: 20.93 | D68: 22.73 | E68: 23.93 | F68: 17.45 | G68: 21.77 | H68: 13.68 | I68: 23.65 | J68: 18.77 | K68: 14.69 | L68: 21.73 | M68: 15.4 | N68: 19.53 | O68: 23.07 | P68: 22.68 | Q68: 21.87 | R68: 22.93 | S68: 23.12 | T68: 25.54 | U68: 18.79 | V68: 27.37 | W68: 22.15 | X68: 16.23 | Y68: 26.82 | Z68: 24.93 | AA68: 21.36 | AB68: 22.32 | AC68: 21.98 | AD68: 21.5 | AE68: 23.06 | AF68: 22.03 | AG68: 17.32 | AH68: 23.89 | AI68: 20.41 | AJ68: 23.86 | AK68: 20.6 | AL68: 18.65 | AM68: 22.24 | AN68: 16.38 | AO68: 21.67 | AP68: 24.58 | AQ68: 23.14 | AR68: 22.51 | AS68: 23.18 | AT68: 16.1 | AU68: 15.88 | AV68: 22.6 | AW68: 21.31 | AX68: 23.11 | AY68: 21.62
B69: 23.99 | C69: 24.04 | D69: 19.62 | E69: 19.37 | F69: 24.06 | G69: 20.58 | H69: 23.67 | I69: 25.95 | J69: 15.1 | K69: 16.51 | L69: 26.09 | M69: 25.68 | N69: 26.32 | O69: 18.25 | P69: 24.08 | Q69: 22.39 | R69: 18.49 | S69: 20.79 | T69: 25.58 | U69: 20.59 | V69: 14.74 | W69: 22.26 | X69: 19.81 | Y69: 22.17 | Z69: 26.75 | AA69: 23.81 | AB69: 23.04 | AC69: 18.2 | AD69: 24.25 | AE69: 20.25 | AF69: 25.54 | AG69: 27.37 | AH69: 21.92 | AI69: 21.06 | AJ69: 22.95 | AK69: 20.72 | AL69: 22.2 | AM69: 22.6 | AN69: 22.12 | AO69: 18.94 | AP69: 22.04 | AQ69: 21.61 | AR69: 23.4 | AS69: 25.74 | AT69: 20.51 | AU69: 13.56 | AV69: 20.42 | AW69: 24.64 | AX69: 15.53 | AY69: 17.12
B70: 26.19 | C70: 20.59 | D70: 19.28 | E70: 18.11 | F70: 25.98 | G70: 21.68 | H70: 20.31 | I70: 24.56 | J70: 24.07 | K70: 23.07 | L70: 26.56 | M70: 23.85 | N70: 20.78 | O70: 18.17 | P70: 21.13 | Q70: 21.79 | R70: 24.28 | S70: 24.78 | T70: 15.53 | U70: 23.65 | V70: 24.44 | W70: 24.13 | X70: 20.9 | Y70: 21.24 | Z70: 24.789 | AA70: 27.08 | AB70: 20.9 | AC70: 21.63 | AD70: 22.34 | AE70: 20.34 | AF70: 19.09 | AG70: 23.47 | AH70: 23.13 | AI70: 24.5 | AJ70: 21.81 | AK70: 24.18 | AL70: 26.54 | AM70: 23 | AN70: 24.57 | AO70: 16.42 | AP70: 15.41 | AQ70: 23.48 | AR70: 14.4 | AS70: 21.53 | AT70: 19.84 | AU70: 17.85 | AV70: 18.67 | AW70: 23.29 | AX70: 22.65 | AY70: 23.6
B71: 15.53 | C71: 23.46 | D71: 20.13 | E71: 20.31 | F71: 19.47 | G71: 13.98 | H71: 25.23 | I71: 21.468 | J71: 18.59 | K71: 24.41 | L71: 21.3 | M71: 24.37 | N71: 25.97 | O71: 18.4 | P71: 22.57 | Q71: 22.65 | R71: 20.01 | S71: 24.51 | T71: 22.74 | U71: 23.23 | V71: 16.14 | W71: 16.59 | X71: 15.09 | Y71: 17.67 | Z71: 19.298 | AA71: 23.44 | AB71: 25.928 | AC71: 22.25 | AD71: 22.81 | AE71: 22.11 | AF71: 20.32 | AG71: 25.92 | AH71: 25.41 | AI71: 14.05 | AJ71: 19.48 | AK71: 22.03 | AL71: 18.25 | AM71: 20.19 | AN71: 23.98 | AO71: 20.93 | AP71: 16.85 | AQ71: 24.56 | AR71: 24.661 | AS71: 25.3 | AT71: 20.03 | AU71: 15.3 | AV71: 22.66 | AW71: 22.97 | AX71: 23.19 | AY71: 23.3
B72: 26.99 | C72: 20.55 | D72: 22.1 | E72: 18.03 | F72: 20.17 | G72: 23.15 | H72: 25.41 | I72: 21.47 | J72: 23.01 | K72: 23.33 | L72: 21.78 | M72: 23.38 | N72: 24.93 | O72: 24.09 | P72: 16.2 | Q72: 21.37 | R72: 25.52 | S72: 21.18 | T72: 18.49 | U72: 17.7 | V72: 18.72 | W72: 25.19 | X72: 23.6 | Y72: 22.21 | Z72: 19.48 | AA72: 19.97 | AB72: 19.02 | AC72: 23.72 | AD72: 24.78 | AE72: 27.83 | AF72: 23.58 | AG72: 23.59 | AH72: 19.64 | AI72: 23.48 | AJ72: 19.26 | AK72: 20.65 | AL72: 19.92 | AM72: 15.55 | AN72: 24.46 | AO72: 21.59 | AP72: 19.24 | AQ72: 19.68 | AR72: 17.69 | AS72: 19.59 | AT72: 17.35 | AU72: 20.63 | AV72: 14.18 | AW72: 27.14 | AX72: 21.13 | AY72: 19.68
B73: 22.79 | C73: 23.7 | D73: 23.07 | E73: 25.15 | F73: 11.25 | G73: 21.93 | H73: 22.86 | I73: 15.61 | J73: 24.76 | K73: 21.37 | L73: 20.57 | M73: 17.55 | N73: 18.49 | O73: 21.196 | P73: 21.65 | Q73: 19.33 | R73: 23.62 | S73: 21.42 | T73: 19.95 | U73: 24.45 | V73: 24.42 | W73: 25.52 | X73: 25.75 | Y73: 17.69 | Z73: 19.31 | AA73: 14.5 | AB73: 11.01 | AC73: 19.06 | AD73: 23.68 | AE73: 23.46 | AF73: 23.54 | AG73: 26.28 | AH73: 20.35 | AI73: 22.68 | AJ73: 23.36 | AK73: 20.46 | AL73: 20.16 | AM73: 24.72 | AN73: 17.72 | AO73: 23.38 | AP73: 20.26 | AQ73: 19.49 | AR73: 16.42 | AS73: 22.56 | AT73: 22.15 | AU73: 26.38 | AV73: 23.42 | AW73: 19.83 | AX73: 20.96 | AY73: 22.6
B74: 23.62 | C74: 23.78 | D74: 21.89 | E74: 21.82 | F74: 22.3 | G74: 18.27 | H74: 22.14 | I74: 26.47 | J74: 23.53 | K74: 24.06 | L74: 24.92 | M74: 20.58 | N74: 25.92 | O74: 21.71 | P74: 15.55 | Q74: 21.85 | R74: 18.46 | S74: 22.27 | T74: 17.17 | U74: 24.38 | V74: 20.58 | W74: 19.03 | X74: 20.42 | Y74: 24.87 | Z74: 22.39 | AA74: 17.84 | AB74: 20.63 | AC74: 24.04 | AD74: 27.57 | AE74: 16.68 | AF74: 23.22 | AG74: 21.389 | AH74: 23.56 | AI74: 24.53 | AJ74: 23.93 | AK74: 21.41 | AL74: 20 | AM74: 26.52 | AN74: 22.23 | AO74: 15.98 | AP74: 24.15 | AQ74: 28.28 | AR74: 24.42 | AS74: 22.92 | AT74: 23.24 | AU74: 18.25 | AV74: 13.56 | AW74: 25.13 | AX74: 23.28 | AY74: 19.01
B75: 19.08 | C75: 22.07 | D75: 22.47 | E75: 24.77 | F75: 26.39 | G75: 15.34 | H75: 19.26 | I75: 17.21 | J75: 14.9 | K75: 25.43 | L75: 18.41 | M75: 20.41 | N75: 22.45 | O75: 15.88 | P75: 19.27 | Q75: 21.06 | R75: 25.65 | S75: 24.81 | T75: 26.78 | U75: 22.55 | V75: 24.92 | W75: 26.69 | X75: 14.33 | Y75: 18.14 | Z75: 23.15 | AA75: 19.85 | AB75: 23.05 | AC75: 23.25 | AD75: 25.26 | AE75: 24.05 | AF75: 26.9 | AG75: 15.99 | AH75: 22.79 | AI75: 25.97 | AJ75: 19.41 | AK75: 17.97 | AL75: 24.76 | AM75: 24.06 | AN75: 20.34 | AO75: 19.54 | AP75: 23.46 | AQ75: 16.92 | AR75: 18.71 | AS75: 25.91 | AT75: 25.19 | AU75: 18.68 | AV75: 23.09 | AW75: 20.01 | AX75: 11.5 | AY75: 15.31
B76: 18.83 | C76: 20.64 | D76: 27.05 | E76: 24.28 | F76: 19.94 | G76: 20.2 | H76: 24.52 | I76: 20.91 | J76: 20.18 | K76: 19.46 | L76: 23.18 | M76: 19.89 | N76: 18.04 | O76: 20.89 | P76: 14.62 | Q76: 24.07 | R76: 24.57 | S76: 15.92 | T76: 23.43 | U76: 24.06 | V76: 22.52 | W76: 12.32 | X76: 19.23 | Y76: 20.99 | Z76: 19.26 | AA76: 20.73 | AB76: 24.62 | AC76: 22.96 | AD76: 17.49 | AE76: 24.85 | AF76: 25.24 | AG76: 18.12 | AH76: 20.57 | AI76: 21.11 | AJ76: 21.52 | AK76: 23.69 | AL76: 21.91 | AM76: 26.4 | AN76: 24.7 | AO76: 23.13 | AP76: 21.27 | AQ76: 25.61 | AR76: 17.5 | AS76: 15.33 | AT76: 19.2 | AU76: 24.04 | AV76: 21.52 | AW76: 23.96 | AX76: 22.532 | AY76: 21.48
B77: 24.82 | C77: 26.415 | D77: 23.01 | E77: 21.422 | F77: 23.33 | G77: 21.69 | H77: 25.09 | I77: 20.79 | J77: 22.76 | K77: 22.57 | L77: 19.69 | M77: 19.09 | N77: 19.6 | O77: 26.81 | P77: 19.67 | Q77: 23.24 | R77: 20.25 | S77: 16.89 | T77: 21.27 | U77: 26.65 | V77: 24.81 | W77: 20.34 | X77: 22.17 | Y77: 18.76 | Z77: 15.98 | AA77: 14.21 | AB77: 22.17 | AC77: 25.26 | AD77: 19.51 | AE77: 20.01 | AF77: 23.009 | AG77: 23.67 | AH77: 23.93 | AI77: 24.17 | AJ77: 14.23 | AK77: 23.07 | AL77: 20.46 | AM77: 23.33 | AN77: 19.46 | AO77: 22.64 | AP77: 25.28 | AQ77: 20.07 | AR77: 25.57 | AS77: 23.04 | AT77: 16.39 | AU77: 19.98 | AV77: 22.437 | AW77: 19.959 | AX77: 23.74 | AY77: 27.37
B78: 18.27 | C78: 17.66 | D78: 22.4 | E78: 18.46 | F78: 20.9 | G78: 25.61 | H78: 22.01 | I78: 22.81 | J78: 22.73 | K78: 17.93 | L78: 24.65 | M78: 16.55 | N78: 25.61 | O78: 25.28 | P78: 24.2 | Q78: 21.362 | R78: 12.78 | S78: 23.41 | T78: 22.48 | U78: 20.31 | V78: 14.99 | W78: 23.51 | X78: 25.91 | Y78: 24.18 | Z78: 19.73 | AA78: 23.85 | AB78: 20.69 | AC78: 20.21 | AD78: 19.5 | AE78: 24.95 | AF78: 24.65 | AG78: 25.67 | AH78: 26.52 | AI78: 21.67 | AJ78: 24.68 | AK78: 17.49 | AL78: 24.49 | AM78: 24.01 | AN78: 24.57 | AO78: 18.47 | AP78: 17.48 | AQ78: 22.77 | AR78: 27.09 | AS78: 23.55 | AT78: 22.75 | AU78: 18.22 | AV78: 22.1 | AW78: 20.56 | AX78: 22.53 | AY78: 22.96
B79: 21.16 | C79: 26.22 | D79: 23.37 | E79: 19.13 | F79: 23.03 | G79: 17.66 | H79: 24.99 | I79: 23.29 | J79: 17.45 | K79: 26.76 | L79: 20.46 | M79: 18.8 | N79: 25.63 | O79: 24.95 | P79: 18.46 | Q79: 26.18 | R79: 20.44 | S79: 17.9 | T79: 21.74 | U79: 22.31 | V79: 16.45 | W79: 19.59 | X79: 21.56 | Y79: 18.99 | Z79: 23.17 | AA79: 20.08 | AB79: 25.37 | AC79: 25.43 | AD79: 18.55 | AE79: 24.96 | AF79: 21.54 | AG79: 22.526 | AH79: 21.12 | AI79: 20.39 | AJ79: 13.68 | AK79: 23.24 | AL79: 23.99 | AM79: 19.33 | AN79: 19.5 | AO79: 22.47 | AP79: 24.43 | AQ79: 23.72 | AR79: 24.52 | AS79: 21.64 | AT79: 27.33 | AU79: 27.79 | AV79: 25.95 | AW79: 24.27 | AX79: 18.38 | AY79: 19.75
B80: 19.27 | C80: 18.82 | D80: 20.5 | E80: 22.03 | F80: 22.41 | G80: 23.05 | H80: 21.71 | I80: 24.12 | J80: 21.15 | K80: 23.25 | L80: 25.72 | M80: 21.5 | N80: 25.03 | O80: 21.99 | P80: 18.67 | Q80: 20.75 | R80: 18.37 | S80: 26.48 | T80: 22.43 | U80: 17.68 | V80: 19.88 | W80: 23.33 | X80: 21.13 | Y80: 17.85 | Z80: 22.86 | AA80: 23.85 | AB80: 22.3 | AC80: 23.88 | AD80: 23.85 | AE80: 14.13 | AF80: 21.23 | AG80: 20.26 | AH80: 17.21 | AI80: 23.37 | AJ80: 24.07 | AK80: 17.1 | AL80: 11.21 | AM80: 23.03 | AN80: 23.7 | AO80: 22.52 | AP80: 24 | AQ80: 20.01 | AR80: 20.08 | AS80: 25.42 | AT80: 21.74 | AU80: 20.17 | AV80: 18.53 | AW80: 24.8 | AX80: 17.77 | AY80: 18.74
B81: 26.6 | C81: 22.74 | D81: 17.39 | E81: 24.73 | F81: 17.09 | G81: 19.87 | H81: 22.49 | I81: 26.47 | J81: 23.42 | K81: 17.41 | L81: 15.66 | M81: 21.85 | N81: 21.41 | O81: 14.76 | P81: 20.28 | Q81: 18.67 | R81: 18.81 | S81: 22.34 | T81: 23.96 | U81: 19.93 | V81: 19.44 | W81: 15.66 | X81: 24.88 | Y81: 20.32 | Z81: 24.7 | AA81: 21.89 | AB81: 18.62 | AC81: 15.94 | AD81: 23.09 | AE81: 23.88 | AF81: 17.19 | AG81: 23.62 | AH81: 21.71 | AI81: 21.43 | AJ81: 25.87 | AK81: 19.93 | AL81: 25.94 | AM81: 25.02 | AN81: 19.86 | AO81: 26.72 | AP81: 19.8 | AQ81: 20.8 | AR81: 18.42 | AS81: 17.13 | AT81: 21.28 | AU81: 24.31 | AV81: 20.5 | AW81: 24.75 | AX81: 22.27 | AY81: 25.05
B82: 23 | C82: 22.22 | D82: 21.15 | E82: 20.74 | F82: 25.18 | G82: 17.68 | H82: 23.54 | I82: 22.2 | J82: 20.23 | K82: 19.94 | L82: 20.45 | M82: 24.52 | N82: 19.64 | O82: 26.61 | P82: 23.64 | Q82: 25.43 | R82: 23.82 | S82: 19.6 | T82: 16.81 | U82: 24.3 | V82: 23 | W82: 23.09 | X82: 23.32 | Y82: 19.75 | Z82: 19.44 | AA82: 24.76 | AB82: 23.44 | AC82: 17.05 | AD82: 24.35 | AE82: 18.48 | AF82: 24.39 | AG82: 17.39 | AH82: 24.17 | AI82: 24.41 | AJ82: 24.23 | AK82: 25.06 | AL82: 25.53 | AM82: 24.02 | AN82: 12.77 | AO82: 24.08 | AP82: 18.21 | AQ82: 27.42 | AR82: 21.73 | AS82: 18.29 | AT82: 23.789 | AU82: 22.47 | AV82: 25.13 | AW82: 25.06 | AX82: 18.72 | AY82: 20.85
B83: 20.26 | C83: 20.35 | D83: 21.99 | E83: 16.22 | F83: 19.58 | G83: 21.33 | H83: 20.36 | I83: 25.43 | J83: 24.44 | K83: 25.74 | L83: 20.19 | M83: 24.62 | N83: 19.27 | O83: 24.18 | P83: 23.34 | Q83: 21.69 | R83: 17.65 | S83: 22.17 | T83: 22.61 | U83: 24 | V83: 24.38 | W83: 16.58 | X83: 18.93 | Y83: 18.78 | Z83: 24.06 | AA83: 23.66 | AB83: 23.47 | AC83: 20.97 | AD83: 19.79 | AE83: 22.7 | AF83: 24.51 | AG83: 19.93 | AH83: 17.8 | AI83: 25.36 | AJ83: 24.93 | AK83: 22.13 | AL83: 13.71 | AM83: 13.49 | AN83: 20.67 | AO83: 25.01 | AP83: 22.9 | AQ83: 22.61 | AR83: 25.66 | AS83: 19.58 | AT83: 20.52 | AU83: 25.26 | AV83: 20.76 | AW83: 21.19 | AX83: 20.49 | AY83: 19.9
B84: 24.06 | C84: 17.37 | D84: 24.39 | E84: 18.61 | F84: 23.49 | G84: 17.6 | H84: 25.12 | I84: 22.13 | J84: 24.06 | K84: 26.82 | L84: 17.01 | M84: 24.3 | N84: 22.04 | O84: 23.37 | P84: 22.55 | Q84: 19.57 | R84: 26.26 | S84: 26.03 | T84: 24.15 | U84: 22.23 | V84: 20.82 | W84: 20.76 | X84: 27.36 | Y84: 15.66 | Z84: 18.96 | AA84: 20.59 | AB84: 17.75 | AC84: 20.89 | AD84: 16.81 | AE84: 22.78 | AF84: 23.73 | AG84: 24.79 | AH84: 15.79 | AI84: 24.02 | AJ84: 24.57 | AK84: 20.239 | AL84: 23.09 | AM84: 23.71 | AN84: 24.3 | AO84: 23.7 | AP84: 24.19 | AQ84: 23.33 | AR84: 19.98 | AS84: 21.13 | AT84: 22.88 | AU84: 29.36 | AV84: 19.99 | AW84: 22.93 | AX84: 23.07 | AY84: 21.94
B85: 13.13 | C85: 17.33 | D85: 22.97 | E85: 22.07 | F85: 22.73 | G85: 23.532 | H85: 19.01 | I85: 23.35 | J85: 23.26 | K85: 23.52 | L85: 20.99 | M85: 21.99 | N85: 18.27 | O85: 17.53 | P85: 23.135 | Q85: 16.36 | R85: 21.66 | S85: 19.74 | T85: 24.13 | U85: 19.63 | V85: 24.53 | W85: 20.2 | X85: 17.14 | Y85: 24.95 | Z85: 23.09 | AA85: 23.13 | AB85: 24.04 | AC85: 22.16 | AD85: 22.69 | AE85: 23.92 | AF85: 18.98 | AG85: 13.27 | AH85: 16.72 | AI85: 20.18 | AJ85: 23.36 | AK85: 20.86 | AL85: 19.2 | AM85: 18.1 | AN85: 23.3 | AO85: 24.9 | AP85: 17.73 | AQ85: 27.13 | AR85: 23.07 | AS85: 15.04 | AT85: 16.99 | AU85: 15.48 | AV85: 21.35 | AW85: 15.28 | AX85: 16.13 | AY85: 16.51
B86: 20.52 | C86: 25.84 | D86: 17.83 | E86: 19.33 | F86: 20.57 | G86: 16.14 | H86: 17.84 | I86: 22.54 | J86: 21.81 | K86: 17.93 | L86: 22.95 | M86: 21.24 | N86: 20.78 | O86: 18.84 | P86: 23.58 | Q86: 22.03 | R86: 23.92 | S86: 22.4 | T86: 14.94 | U86: 24.36 | V86: 24.32 | W86: 15.66 | X86: 24.29 | Y86: 20.82 | Z86: 22.42 | AA86: 24.18 | AB86: 22.58 | AC86: 15.87 | AD86: 26.57 | AE86: 18.68 | AF86: 16.38 | AG86: 25.42 | AH86: 25.69 | AI86: 24.39 | AJ86: 16.61 | AK86: 20.16 | AL86: 23.76 | AM86: 12.41 | AN86: 22.15 | AO86: 21.26 | AP86: 22.71 | AQ86: 24.27 | AR86: 25.54 | AS86: 20.48 | AT86: 15.87 | AU86: 20.06 | AV86: 23.83 | AW86: 22.72 | AX86: 24.13 | AY86: 19.24
B87: 20.23 | C87: 21.43 | D87: 20.33 | E87: 18.49 | F87: 21.83 | G87: 20 | H87: 18.19 | I87: 21.29 | J87: 19.19 | K87: 24.17 | L87: 22.46 | M87: 24.18 | N87: 22.87 | O87: 22.7 | P87: 19.37 | Q87: 24.06 | R87: 17.43 | S87: 19.49 | T87: 21.55 | U87: 21.04 | V87: 26.06 | W87: 23.8 | X87: 18.14 | Y87: 12.69 | Z87: 16.45 | AA87: 22.98 | AB87: 21.71 | AC87: 22.83 | AD87: 19.77 | AE87: 18.83 | AF87: 9.62 | AG87: 25.93 | AH87: 22.71 | AI87: 21.82 | AJ87: 24.44 | AK87: 24.46 | AL87: 23.15 | AM87: 19.58 | AN87: 23.18 | AO87: 21.66 | AP87: 25.11 | AQ87: 23.29 | AR87: 21.2 | AS87: 23.08 | AT87: 22.62 | AU87: 20.82 | AV87: 20.63 | AW87: 20.33 | AX87: 25.32 | AY87: 24.77
B88: 24.74 | C88: 23.79 | D88: 22.27 | E88: 19.8 | F88: 20.43 | G88: 23.24 | H88: 26.98 | I88: 20.54 | J88: 15.86 | K88: 16.7 | L88: 22.59 | M88: 23.39 | N88: 24 | O88: 17.24 | P88: 20.41 | Q88: 19.21 | R88: 26.71 | S88: 21.99 | T88: 25.08 | U88: 15.85 | V88: 18.78 | W88: 25.17 | X88: 22.41 | Y88: 22.38 | Z88: 23.48 | AA88: 21.66 | AB88: 24.04 | AC88: 24.97 | AD88: 24.59 | AE88: 21.8 | AF88: 18.33 | AG88: 18.32 | AH88: 15.87 | AI88: 21.37 | AJ88: 23.02 | AK88: 25.3 | AL88: 21.62 | AM88: 26.55 | AN88: 21.01 | AO88: 10.15 | AP88: 21.09 | AQ88: 23.19 | AR88: 18.5 | AS88: 21.84 | AT88: 20.18 | AU88: 24.91 | AV88: 25.46 | AW88: 21.48 | AX88: 24.4 | AY88: 21.21
B89: 24.49 | C89: 23.23 | D89: 18.9 | E89: 21.4 | F89: 26.43 | G89: 19.91 | H89: 21.141 | I89: 21.83 | J89: 21.92 | K89: 19.78 | L89: 22.02 | M89: 22.71 | N89: 20.02 | O89: 25.48 | P89: 26.57 | Q89: 16.7 | R89: 23.73 | S89: 26.41 | T89: 21.55 | U89: 22.53 | V89: 16.37 | W89: 17.15 | X89: 20.46 | Y89: 21.21 | Z89: 22.61 | AA89: 15.59 | AB89: 18.97 | AC89: 21.06 | AD89: 19.04 | AE89: 20.98 | AF89: 21.83 | AG89: 22.97 | AH89: 20.76 | AI89: 16.74 | AJ89: 23.95 | AK89: 22.91 | AL89: 14.85 | AM89: 20.63 | AN89: 24.62 | AO89: 22.78 | AP89: 23.69 | AQ89: 22.95 | AR89: 24.45 | AS89: 19.09 | AT89: 21.35 | AU89: 20.77 | AV89: 23.64 | AW89: 19.26 | AX89: 13.68 | AY89: 18.94
B90: 27.2 | C90: 23.23 | D90: 25.05 | E90: 23.2 | F90: 26.33 | G90: 16.96 | H90: 19.2 | I90: 27.54 | J90: 27.34 | K90: 24.22 | L90: 23.69 | M90: 24.05 | N90: 17.54 | O90: 20.35 | P90: 24.613 | Q90: 24.08 | R90: 15.36 | S90: 25.75 | T90: 25.39 | U90: 20.47 | V90: 19.01 | W90: 19.43 | X90: 17.22 | Y90: 22.37 | Z90: 24.67 | AA90: 17.2 | AB90: 24.31 | AC90: 22.62 | AD90: 23.61 | AE90: 26.01 | AF90: 28.18 | AG90: 22.32 | AH90: 24.79 | AI90: 21.24 | AJ90: 18.36 | AK90: 26.3 | AL90: 23.04 | AM90: 17.38 | AN90: 23.91 | AO90: 24.74 | AP90: 21.79 | AQ90: 21.47 | AR90: 18.81 | AS90: 26.44 | AT90: 18.24 | AU90: 15.83 | AV90: 24.66 | AW90: 24.38 | AX90: 22.65 | AY90: 25.15
B91: 23.94 | C91: 15.77 | D91: 23.21 | E91: 29.6 | F91: 25.602 | G91: 18.23 | H91: 22.67 | I91: 24.73 | J91: 24.61 | K91: 22.43 | L91: 21.28 | M91: 25.78 | N91: 10.1 | O91: 15.62 | P91: 13.7 | Q91: 16.85 | R91: 19.6 | S91: 22.08 | T91: 21.39 | U91: 18.54 | V91: 12.34 | W91: 18.74 | X91: 20.91 | Y91: 25.64 | Z91: 19.46 | AA91: 20.03 | AB91: 17.93 | AC91: 24.44 | AD91: 15.33 | AE91: 21.12 | AF91: 22.16 | AG91: 21.87 | AH91: 25.24 | AI91: 23.14 | AJ91: 21.32 | AK91: 23.91 | AL91: 23.26 | AM91: 22.79 | AN91: 20.24 | AO91: 18.45 | AP91: 24.6 | AQ91: 21.07 | AR91: 25.59 | AS91: 19.25 | AT91: 23 | AU91: 21.61 | AV91: 25.82 | AW91: 24.85 | AX91: 19.16 | AY91: 25.89
B92: 20.85 | C92: 22.67 | D92: 26.5 | E92: 22.71 | F92: 19.64 | G92: 25.04 | H92: 26.27 | I92: 21.12 | J92: 19.43 | K92: 19.12 | L92: 25.23 | M92: 24.87 | N92: 26.8 | O92: 24.21 | P92: 22.65 | Q92: 18.8 | R92: 20.74 | S92: 17.67 | T92: 22.23 | U92: 17.34 | V92: 21.93 | W92: 23.72 | X92: 23.91 | Y92: 16.76 | Z92: 15.14 | AA92: 24.13 | AB92: 25.45 | AC92: 21.44 | AD92: 23.78 | AE92: 23.3 | AF92: 18.11 | AG92: 18.34 | AH92: 23.13 | AI92: 22.3 | AJ92: 20.08 | AK92: 22.24 | AL92: 19.46 | AM92: 19.64 | AN92: 21.84 | AO92: 25.83 | AP92: 18.46 | AQ92: 16.86 | AR92: 21.86 | AS92: 22.94 | AT92: 18.03 | AU92: 23.25 | AV92: 22.73 | AW92: 20.1 | AX92: 21.39 | AY92: 22.18
B93: 21.608 | C93: 22.67 | D93: 25.01 | E93: 23.03 | F93: 22.89 | G93: 21.57 | H93: 22.84 | I93: 18.52 | J93: 26.6 | K93: 13.97 | L93: 19.09 | M93: 15.58 | N93: 26.57 | O93: 23.09 | P93: 20.7 | Q93: 23.49 | R93: 23.41 | S93: 17.17 | T93: 18.1 | U93: 17.94 | V93: 18.65 | W93: 20.98 | X93: 22.98 | Y93: 21.62 | Z93: 26.57 | AA93: 22.09 | AB93: 23.38 | AC93: 16.92 | AD93: 18.92 | AE93: 21.23 | AF93: 16.38 | AG93: 25.43 | AH93: 23.466 | AI93: 27.3 | AJ93: 24.3 | AK93: 23.65 | AL93: 18.04 | AM93: 19.49 | AN93: 22.99 | AO93: 18.99 | AP93: 21.01 | AQ93: 19.41 | AR93: 21.93 | AS93: 27.98 | AT93: 25.02 | AU93: 20.67 | AV93: 23.16 | AW93: 24.6 | AX93: 22.81 | AY93: 24.66
B94: 19.61 | C94: 26.98 | D94: 21.64 | E94: 23.46 | F94: 20.05 | G94: 24.62 | H94: 20.9 | I94: 16.73 | J94: 16.88 | K94: 21.92 | L94: 15.09 | M94: 25.01 | N94: 16.55 | O94: 23.08 | P94: 21.46 | Q94: 25.3 | R94: 25.63 | S94: 18.8 | T94: 23.78 | U94: 20.52 | V94: 23.03 | W94: 20.66 | X94: 20.54 | Y94: 26.87 | Z94: 17.85 | AA94: 21.19 | AB94: 19.38 | AC94: 24.95 | AD94: 23.99 | AE94: 19.73 | AF94: 20.91 | AG94: 25.38 | AH94: 23.47 | AI94: 25.77 | AJ94: 16.71 | AK94: 19.82 | AL94: 17.93 | AM94: 23.3 | AN94: 17.94 | AO94: 16.99 | AP94: 22.48 | AQ94: 21.82 | AR94: 24.06 | AS94: 26.57 | AT94: 24.81 | AU94: 28.66 | AV94: 25.76 | AW94: 15.82 | AX94: 24.13 | AY94: 18.97
B95: 27 | C95: 24.12 | D95: 23.17 | E95: 23.24 | F95: 26.87 | G95: 25.94 | H95: 17.12 | I95: 19.4 | J95: 16.06 | K95: 20.175 | L95: 19.1 | M95: 19.79 | N95: 24.7 | O95: 19.2 | P95: 16.83 | Q95: 18.13 | R95: 20.07 | S95: 20.16 | T95: 18.51 | U95: 23.16 | V95: 20.89 | W95: 17.57 | X95: 21.04 | Y95: 24.58 | Z95: 23.69 | AA95: 18.12 | AB95: 14.51 | AC95: 21.13 | AD95: 25.19 | AE95: 24.01 | AF95: 20.1 | AG95: 16.73 | AH95: 20.75 | AI95: 14.1 | AJ95: 26.04 | AK95: 23.87 | AL95: 18.6 | AM95: 23.29 | AN95: 23.01 | AO95: 19.77 | AP95: 27 | AQ95: 19.77 | AR95: 20.44 | AS95: 17.37 | AT95: 18.72 | AU95: 27.24 | AV95: 16.82 | AW95: 22.81 | AX95: 23.74 | AY95: 19.34
B96: 23.84 | C96: 15.95 | D96: 22.96 | E96: 19.11 | F96: 24.03 | G96: 22.8 | H96: 23.89 | I96: 18.59 | J96: 23.95 | K96: 24.83 | L96: 23.09 | M96: 23.38 | N96: 20.62 | O96: 22.67 | P96: 19.7 | Q96: 15.67 | R96: 20.39 | S96: 23.6 | T96: 18.4 | U96: 16.58 | V96: 18.55 | W96: 21.1 | X96: 16.09 | Y96: 28.11 | Z96: 21.16 | AA96: 18.41 | AB96: 21.67 | AC96: 16.71 | AD96: 18.12 | AE96: 18.84 | AF96: 21.58 | AG96: 21.31 | AH96: 25 | AI96: 18.12 | AJ96: 20.39 | AK96: 21.22 | AL96: 27.06 | AM96: 19.73 | AN96: 21.04 | AO96: 20.98 | AP96: 26.03 | AQ96: 16.25 | AR96: 24.88 | AS96: 15.05 | AT96: 21.66 | AU96: 14.88 | AV96: 23.96 | AW96: 23.83 | AX96: 24.26 | AY96: 18.25
B97: 20.84 | C97: 24.8 | D97: 22.46 | E97: 13.89 | F97: 24.91 | G97: 23.91 | H97: 21.63 | I97: 22.06 | J97: 20.62 | K97: 19.12 | L97: 24.36 | M97: 17.6 | N97: 23.89 | O97: 22.12 | P97: 22.93 | Q97: 16.19 | R97: 22.03 | S97: 22.3 | T97: 28.8 | U97: 23.08 | V97: 18.49 | W97: 24.22 | X97: 21.69 | Y97: 23.46 | Z97: 19.29 | AA97: 23.38 | AB97: 24.15 | AC97: 22.52 | AD97: 22.91 | AE97: 19.02 | AF97: 18.54 | AG97: 27.6 | AH97: 19.85 | AI97: 22.08 | AJ97: 23.56 | AK97: 20.19 | AL97: 24.02 | AM97: 24.93 | AN97: 21.65 | AO97: 15.32 | AP97: 22.83 | AQ97: 24.82 | AR97: 20.81 | AS97: 25.71 | AT97: 17.8 | AU97: 19.37 | AV97: 23.1 | AW97: 26.77 | AX97: 23.75 | AY97: 21.99
B98: 22.43 | C98: 18.79 | D98: 18.29 | E98: 23.37 | F98: 23.413 | G98: 25.95 | H98: 21.19 | I98: 23.91 | J98: 20.75 | K98: 23.4 | L98: 18.26 | M98: 25.69 | N98: 23.62 | O98: 20.11 | P98: 21.55 | Q98: 23.08 | R98: 23.21 | S98: 23.25 | T98: 20.83 | U98: 23.13 | V98: 21.13 | W98: 19.07 | X98: 20.71 | Y98: 25.19 | Z98: 22.97 | AA98: 19.24 | AB98: 17.18 | AC98: 14.05 | AD98: 23.61 | AE98: 23.65 | AF98: 23.59 | AG98: 21.7 | AH98: 21.46 | AI98: 23.45 | AJ98: 25.49 | AK98: 21.83 | AL98: 24.39 | AM98: 26.66 | AN98: 19.39 | AO98: 23.89 | AP98: 18.38 | AQ98: 21.31 | AR98: 24.84 | AS98: 23.68 | AT98: 22.5 | AU98: 19.94 | AV98: 25.48 | AW98: 21.9 | AX98: 24.54 | AY98: 22.27
B99: 27.49 | C99: 25.84 | D99: 21.97 | E99: 22.5 | F99: 25.48 | G99: 25.474 | H99: 24.66 | I99: 26.9 | J99: 21.48 | K99: 20.69 | L99: 22.35 | M99: 24.58 | N99: 22.46 | O99: 22.14 | P99: 24.86 | Q99: 14.25 | R99: 23.55 | S99: 26.94 | T99: 20.6 | U99: 22.89 | V99: 23.99 | W99: 23.38 | X99: 22.24 | Y99: 25.92 | Z99: 23.1 | AA99: 16.13 | AB99: 24.09 | AC99: 24.47 | AD99: 24.72 | AE99: 15.92 | AF99: 23.85 | AG99: 16.39 | AH99: 16.52 | AI99: 23.96 | AJ99: 24.4 | AK99: 21.15 | AL99: 11.65 | AM99: 21.43 | AN99: 13.01 | AO99: 26.17 | AP99: 20.52 | AQ99: 13.89 | AR99: 23.68 | AS99: 21.72 | AT99: 28.16 | AU99: 25.35 | AV99: 26.54 | AW99: 26.04 | AX99: 13.98 | AY99: 23.94
B100: 16.35 | C100: 24.71 | D100: 26.03 | E100: 24.44 | F100: 26.16 | G100: 24.24 | H100: 19.77 | I100: 23.33 | J100: 19.38 | K100: 19.78 | L100: 23.86 | M100: 23.88 | N100: 25.78 | O100: 23.3 | P100: 24.05 | Q100: 25.12 | R100: 20.3 | S100: 20.39 | T100: 24.02 | U100: 25.19 | V100: 23.73 | W100: 26.12 | X100: 24.49 | Y100: 24.19 | Z100: 23.048 | AA100: 18.46 | AB100: 20.94 | AC100: 18.41 | AD100: 18.08 | AE100: 25.62 | AF100: 19.27 | AG100: 22.911 | AH100: 20.43 | AI100: 25.77 | AJ100: 20.27 | AK100: 19.57 | AL100: 24.02 | AM100: 22.98 | AN100: 17.94 | AO100: 23.02 | AP100: 23.03 | AQ100: 22.69 | AR100: 24.67 | AS100: 17.73 | AT100: 21.6 | AU100: 23.21 | AV100: 17.93 | AW100: 24.94 | AX100: 22.26 | AY100: 21.78
B101: 21.35 | C101: 19.95 | D101: 19.59 | E101: 25.17 | F101: 24.49 | G101: 26.49 | H101: 17.32 | I101: 21.97 | J101: 21.02 | K101: 21.25 | L101: 17.58 | M101: 17.95 | N101: 17.93 | O101: 20.11 | P101: 26.27 | Q101: 22 | R101: 25.23 | S101: 13.55 | T101: 24.96 | U101: 23.66 | V101: 22.4 | W101: 23.573 | X101: 22.49 | Y101: 24.17 | Z101: 22.08 | AA101: 24.26 | AB101: 20.73 | AC101: 23.72 | AD101: 18.97 | AE101: 23.39 | AF101: 26.17 | AG101: 21.82 | AH101: 17.85 | AI101: 22.12 | AJ101: 17.2 | AK101: 14.46 | AL101: 20.28 | AM101: 24.038 | AN101: 26.15 | AO101: 17 | AP101: 23.32 | AQ101: 23.04 | AR101: 14.72 | AS101: 22.96 | AT101: 29 | AU101: 17.4 | AV101: 17.97 | AW101: 22.56 | AX101: 24.1 | AY101: 19.34
B102: 23.88 | C102: 15.84 | D102: 21.12 | E102: 17.82 | F102: 15.41 | G102: 25.04 | H102: 22 | I102: 27.91 | J102: 20.31 | K102: 19.54 | L102: 20.01 | M102: 19.67 | N102: 18.94 | O102: 23.83 | P102: 23.45 | Q102: 17.76 | R102: 26.52 | S102: 18.01 | T102: 18.2 | U102: 16.88 | V102: 19.88 | W102: 19.25 | X102: 22.79 | Y102: 23.9 | Z102: 23.01 | AA102: 22.23 | AB102: 18.63 | AC102: 21.51 | AD102: 23.78 | AE102: 21.48 | AF102: 27.64 | AG102: 25.54 | AH102: 23.77 | AI102: 19.65 | AJ102: 12.8 | AK102: 21.54 | AL102: 25.72 | AM102: 15.08 | AN102: 24.86 | AO102: 23.41 | AP102: 27.25 | AQ102: 18.77 | AR102: 23.21 | AS102: 17 | AT102: 25.27 | AU102: 25.76 | AV102: 18.26 | AW102: 20.38 | AX102: 23.06 | AY102: 15.47
B103: 22.87 | C103: 24.78 | D103: 22 | E103: 25.71 | F103: 21.91 | G103: 16.05 | H103: 19.79 | I103: 25.9 | J103: 22.45 | K103: 23.07 | L103: 23.44 | M103: 15.41 | N103: 23.67 | O103: 22.15 | P103: 20.01 | Q103: 25.7 | R103: 25 | S103: 18.52 | T103: 24.21 | U103: 23.78 | V103: 25.37 | W103: 20.81 | X103: 27.21 | Y103: 23.99 | Z103: 25.81 | AA103: 24.78 | AB103: 22.25 | AC103: 16.81 | AD103: 23.25 | AE103: 22.18 | AF103: 22.03 | AG103: 22.52 | AH103: 23.25 | AI103: 13.18 | AJ103: 20.78 | AK103: 19.94 | AL103: 25.25 | AM103: 25.09 | AN103: 22.82 | AO103: 25.36 | AP103: 21.55 | AQ103: 16.77 | AR103: 19.94 | AS103: 26.82 | AT103: 18.16 | AU103: 17.01 | AV103: 24.06 | AW103: 25.78 | AX103: 23.51 | AY103: 24.43
B104: 24.49 | C104: 21.94 | D104: 22.25 | E104: 26.49 | F104: 15.71 | G104: 18.93 | H104: 23.42 | I104: 14.41 | J104: 18.33 | K104: 25.59 | L104: 21.51 | M104: 16.42 | N104: 19.03 | O104: 18.74 | P104: 26.03 | Q104: 23.73 | R104: 21.17 | S104: 26.31 | T104: 21.57 | U104: 22.05 | V104: 23.52 | W104: 22.59 | X104: 20.99 | Y104: 17.54 | Z104: 16.34 | AA104: 25.28 | AB104: 21.26 | AC104: 20.44 | AD104: 23.36 | AE104: 22.34 | AF104: 17.97 | AG104: 24.77 | AH104: 14.04 | AI104: 23.8 | AJ104: 22.33 | AK104: 21.96 | AL104: 22.25 | AM104: 19.44 | AN104: 20.98 | AO104: 19.41 | AP104: 27.16 | AQ104: 23.11 | AR104: 22.78 | AS104: 16.71 | AT104: 20.74 | AU104: 22.46 | AV104: 24.27 | AW104: 21.82 | AX104: 19.49 | AY104: 20.56
B105: 20.73 | C105: 16.13 | D105: 19.15 | E105: 15.76 | F105: 22.45 | G105: 22.77 | H105: 23.03 | I105: 26.7 | J105: 22.217 | K105: 28.23 | L105: 18.49 | M105: 24.48 | N105: 25.49 | O105: 20.21 | P105: 22.79 | Q105: 23.91 | R105: 22.83 | S105: 17.54 | T105: 20.56 | U105: 19.87 | V105: 21.08 | W105: 16.88 | X105: 23.18 | Y105: 23.09 | Z105: 26.24 | AA105: 15.81 | AB105: 21.99 | AC105: 22.69 | AD105: 19.55 | AE105: 17.68 | AF105: 19.32 | AG105: 21.7 | AH105: 23.93 | AI105: 24.22 | AJ105: 21.4 | AK105: 13.08 | AL105: 23.38 | AM105: 23.17 | AN105: 25.32 | AO105: 22.46 | AP105: 13.35 | AQ105: 21.07 | AR105: 12.09 | AS105: 19.04 | AT105: 18.91 | AU105: 21.93 | AV105: 22.44 | AW105: 13.32 | AX105: 24.14 | AY105: 22.77
B106: 19.7 | C106: 16.82 | D106: 19.08 | E106: 18.11 | F106: 25.11 | G106: 20.71 | H106: 17.64 | I106: 16.1 | J106: 26.09 | K106: 19.53 | L106: 14.97 | M106: 13.72 | N106: 19.46 | O106: 23.22 | P106: 26.85 | Q106: 23.54 | R106: 18.12 | S106: 21.93 | T106: 21.35 | U106: 27.53 | V106: 21.39 | W106: 14.65 | X106: 24.18 | Y106: 27.44 | Z106: 12.47 | AA106: 24.26 | AB106: 20.17 | AC106: 15.99 | AD106: 24.86 | AE106: 21 | AF106: 18.54 | AG106: 20.97 | AH106: 18.76 | AI106: 21.05 | AJ106: 24.05 | AK106: 20.35 | AL106: 20.65 | AM106: 26.52 | AN106: 20.951 | AO106: 15.03 | AP106: 20.92 | AQ106: 25.97 | AR106: 25.28 | AS106: 15.48 | AT106: 22.18 | AU106: 28.3 | AV106: 20.92 | AW106: 22.69 | AX106: 22.89 | AY106: 22.69
B107: 17.58 | C107: 21.48 | D107: 16.52 | E107: 20.05 | F107: 23.854 | G107: 25.14 | H107: 22.81 | I107: 23.51 | J107: 22.92 | K107: 19.48 | L107: 16.08 | M107: 23.46 | N107: 19.06 | O107: 24.32 | P107: 22.53 | Q107: 24.5 | R107: 21.66 | S107: 15.34 | T107: 25.13 | U107: 22.48 | V107: 25.95 | W107: 20.76 | X107: 19.8 | Y107: 25.34 | Z107: 22.99 | AA107: 21.39 | AB107: 24.66 | AC107: 19.8 | AD107: 20.13 | AE107: 14.93 | AF107: 25.21 | AG107: 20.98 | AH107: 23.02 | AI107: 25.31 | AJ107: 14.74 | AK107: 19.56 | AL107: 23.74 | AM107: 21.8 | AN107: 21.49 | AO107: 21.59 | AP107: 21.57 | AQ107: 22.21 | AR107: 23.83 | AS107: 22.53 | AT107: 22.83 | AU107: 24.54 | AV107: 21.48 | AW107: 26.19 | AX107: 23.04 | AY107: 18.28

Sheet MediasAmostra10
A1: Média | B1: Desvio Padrão | C1: Variância | D1: Intervalo | F1: Não contém | G1: =SUM(F2:F51)/50 -> 0.06
A2: 21.222 | B2: 3.896932697 | C2: 15.18608444 | D2: =A2-2*(B2/SQRT(10)) -> 18.75736336 | E2: =A2+2*(B2/SQRT(10)) -> 23.68663664 | F2: =IF(AND(DadosTemp!$H$1>D2,DadosTemp!$H$1<E2),"",1) -> 
A3: 21.075 | B3: 2.447249022 | C3: 5.989027778 | D3: =A3-2*(B3/SQRT(10)) -> 19.52722382 | E3: =A3+2*(B3/SQRT(10)) -> 22.62277618 | F3: =IF(AND(DadosTemp!$H$1>D3,DadosTemp!$H$1<E3),"",1) -> 
A4: 21.663 | B4: 3.932904073 | C4: 15.46773444 | D4: 19.17561306 | E4: 24.15038694 | F4: =IF(AND(DadosTemp!$H$1>D4,DadosTemp!$H$1<E4),"",1) -> 
A5: 21.374 | B5: 4.086963556 | C5: 16.70327111 | D5: 18.78917729 | E5: 23.95882271 | F5: =IF(AND(DadosTemp!$H$1>D5,DadosTemp!$H$1<E5),"",1) -> 
A6: 21.636 | B6: 2.706585385 | C6: 7.325604444 | D6: 19.9242051 | E6: 23.3477949 | F6: =IF(AND(DadosTemp!$H$1>D6,DadosTemp!$H$1<E6),"",1) -> 
A7: 21.4477 | B7: 3.021706216 | C7: 9.130708456 | D7: 19.53660519 | E7: 23.35879481 | F7: =IF(AND(DadosTemp!$H$1>D7,DadosTemp!$H$1<E7),"",1) -> 
A8: 20.79 | B8: 2.541897804 | C8: 6.461244444 | D8: 19.18236267 | E8: 22.39763733 | F8: =IF(AND(DadosTemp!$H$1>D8,DadosTemp!$H$1<E8),"",1) -> 
A9: 21.58 | B9: 2.717335296 | C9: 7.383911111 | D9: 19.86140626 | E9: 23.29859374 | F9: =IF(AND(DadosTemp!$H$1>D9,DadosTemp!$H$1<E9),"",1) -> 
A10: 23.169 | B10: 3.967709807 | C10: 15.74272111 | D10: 20.65959998 | E10: 25.67840002 | F10: =IF(AND(DadosTemp!$H$1>D10,DadosTemp!$H$1<E10),"",1) -> 
A11: 19.63 | B11: 2.89942523 | C11: 8.406666667 | D11: 17.79624247 | E11: 21.46375753 | F11: =IF(AND(DadosTemp!$H$1>D11,DadosTemp!$H$1<E11),"",1) -> 1
A12: 21.579 | B12: 3.526970529 | C12: 12.43952111 | D12: 19.34834798 | E12: 23.80965202 | F12: =IF(AND(DadosTemp!$H$1>D12,DadosTemp!$H$1<E12),"",1) -> 
A13: 22.466 | B13: 2.807870684 | C13: 7.884137778 | D13: 20.69014665 | E13: 24.24185335 | F13: =IF(AND(DadosTemp!$H$1>D13,DadosTemp!$H$1<E13),"",1) -> 
A14: 20.177 | B14: 3.295347056 | C14: 10.85931222 | D14: 18.09283952 | E14: 22.26116048 | F14: =IF(AND(DadosTemp!$H$1>D14,DadosTemp!$H$1<E14),"",1) -> 
A15: 20.75 | B15: 4.86161153 | C15: 23.63526667 | D15: 17.67524689 | E15: 23.82475311 | F15: =IF(AND(DadosTemp!$H$1>D15,DadosTemp!$H$1<E15),"",1) -> 
A16: 23.483 | B16: 2.939418121 | C16: 8.640178889 | D16: 21.62394875 | E16: 25.34205125 | F16: =IF(AND(DadosTemp!$H$1>D16,DadosTemp!$H$1<E16),"",1) -> 
A17: 20.678 | B17: 3.572471289 | C17: 12.76255111 | D17: 18.41857077 | E17: 22.93742923 | F17: =IF(AND(DadosTemp!$H$1>D17,DadosTemp!$H$1<E17),"",1) -> 
A18: 20.5069 | B18: 4.000566695 | C18: 16.00453388 | D18: 17.97671946 | E18: 23.03708054 | F18: =IF(AND(DadosTemp!$H$1>D18,DadosTemp!$H$1<E18),"",1) -> 
A19: 21.0926 | B19: 2.738429566 | C19: 7.498996489 | D19: 19.36066507 | E19: 22.82453493 | F19: =IF(AND(DadosTemp!$H$1>D19,DadosTemp!$H$1<E19),"",1) -> 
A20: 19.8973 | B20: 3.487448862 | C20: 12.16229957 | D20: 17.69164367 | E20: 22.10295633 | F20: =IF(AND(DadosTemp!$H$1>D20,DadosTemp!$H$1<E20),"",1) -> 
A21: 20.76 | B21: 1.826903878 | C21: 3.337577778 | D21: 19.60456454 | E21: 21.91543546 | F21: =IF(AND(DadosTemp!$H$1>D21,DadosTemp!$H$1<E21),"",1) -> 
A22: 21.498 | B22: 4.358967258 | C22: 19.00059556 | D22: 18.74114704 | E22: 24.25485296 | F22: =IF(AND(DadosTemp!$H$1>D22,DadosTemp!$H$1<E22),"",1) -> 
A23: 22.056 | B23: 2.459160652 | C23: 6.047471111 | D23: 20.50069024 | E23: 23.61130976 | F23: =IF(AND(DadosTemp!$H$1>D23,DadosTemp!$H$1<E23),"",1) -> 
A24: 21.2566 | B24: 2.730708504 | C24: 7.456768933 | D24: 19.5295483 | E24: 22.9836517 | F24: =IF(AND(DadosTemp!$H$1>D24,DadosTemp!$H$1<E24),"",1) -> 
A25: 21.857 | B25: 2.328261392 | C25: 5.420801111 | D25: 20.3844782 | E25: 23.3295218 | F25: =IF(AND(DadosTemp!$H$1>D25,DadosTemp!$H$1<E25),"",1) -> 
A26: 22.271 | B26: 3.727568317 | C26: 13.89476556 | D26: 19.9134788 | E26: 24.6285212 | F26: =IF(AND(DadosTemp!$H$1>D26,DadosTemp!$H$1<E26),"",1) -> 
A27: 22.117 | B27: 3.481899386 | C27: 12.12362333 | D27: 19.91485347 | E27: 24.31914653 | F27: =IF(AND(DadosTemp!$H$1>D27,DadosTemp!$H$1<E27),"",1) -> 
A28: 23.26 | B28: 3.166564911 | C28: 10.02713333 | D28: 21.2572885 | E28: 25.2627115 | F28: =IF(AND(DadosTemp!$H$1>D28,DadosTemp!$H$1<E28),"",1) -> 
A29: 22.839 | B29: 2.177794246 | C29: 4.742787778 | D29: 21.46164198 | E29: 24.21635802 | F29: =IF(AND(DadosTemp!$H$1>D29,DadosTemp!$H$1<E29),"",1) -> 
A30: 20.3911 | B30: 3.049887592 | C30: 9.301814322 | D30: 18.46218172 | E30: 22.32001828 | F30: =IF(AND(DadosTemp!$H$1>D30,DadosTemp!$H$1<E30),"",1) -> 
A31: 22.4526 | B31: 2.952919467 | C31: 8.719733378 | D31: 20.58500975 | E31: 24.32019025 | F31: =IF(AND(DadosTemp!$H$1>D31,DadosTemp!$H$1<E31),"",1) -> 
A32: 20.156 | B32: 3.721302639 | C32: 13.84809333 | D32: 17.80244156 | E32: 22.50955844 | F32: =IF(AND(DadosTemp!$H$1>D32,DadosTemp!$H$1<E32),"",1) -> 
A33: 21.034 | B33: 3.32537784 | C33: 11.05813778 | D33: 18.93084639 | E33: 23.13715361 | F33: =IF(AND(DadosTemp!$H$1>D33,DadosTemp!$H$1<E33),"",1) -> 
A34: 24.801 | B34: 1.831298568 | C34: 3.353654444 | D34: 23.64278509 | E34: 25.95921491 | F34: =IF(AND(DadosTemp!$H$1>D34,DadosTemp!$H$1<E34),"",1) -> 1
A35: 23.195 | B35: 3.34202949 | C35: 11.16916111 | D35: 21.08131496 | E35: 25.30868504 | F35: =IF(AND(DadosTemp!$H$1>D35,DadosTemp!$H$1<E35),"",1) -> 
A36: 22.1624 | B36: 3.645185537 | C36: 13.2873776 | D36: 19.85698224 | E36: 24.46781776 | F36: =IF(AND(DadosTemp!$H$1>D36,DadosTemp!$H$1<E36),"",1) -> 
A37: 20.927 | B37: 2.833890337 | C37: 8.030934444 | D37: 19.13469038 | E37: 22.71930962 | F37: =IF(AND(DadosTemp!$H$1>D37,DadosTemp!$H$1<E37),"",1) -> 
A38: 21.693 | B38: 3.92743357 | C38: 15.42473444 | D38: 19.20907291 | E38: 24.17692709 | F38: =IF(AND(DadosTemp!$H$1>D38,DadosTemp!$H$1<E38),"",1) -> 
A39: 24.0454 | B39: 3.023123925 | C39: 9.139278267 | D39: 22.13340855 | E39: 25.95739145 | F39: =IF(AND(DadosTemp!$H$1>D39,DadosTemp!$H$1<E39),"",1) -> 1
A40: 21.259 | B40: 3.815676582 | C40: 14.55938778 | D40: 18.84575424 | E40: 23.67224576 | F40: =IF(AND(DadosTemp!$H$1>D40,DadosTemp!$H$1<E40),"",1) -> 
A41: 21.388 | B41: 3.228524947 | C41: 10.42337333 | D41: 19.34610154 | E41: 23.42989846 | F41: =IF(AND(DadosTemp!$H$1>D41,DadosTemp!$H$1<E41),"",1) -> 
A42: 20.677 | B42: 3.869395732 | C42: 14.97222333 | D42: 18.22977926 | E42: 23.12422074 | F42: =IF(AND(DadosTemp!$H$1>D42,DadosTemp!$H$1<E42),"",1) -> 
A43: 19.935 | B43: 2.913109259 | C43: 8.486205556 | D43: 18.09258793 | E43: 21.77741207 | F43: =IF(AND(DadosTemp!$H$1>D43,DadosTemp!$H$1<E43),"",1) -> 
A44: 22.18 | B44: 2.737829635 | C44: 7.495711111 | D44: 20.4484445 | E44: 23.9115555 | F44: =IF(AND(DadosTemp!$H$1>D44,DadosTemp!$H$1<E44),"",1) -> 
A45: 21.362 | B45: 1.619984911 | C45: 2.624351111 | D45: 20.33743158 | E45: 22.38656842 | F45: =IF(AND(DadosTemp!$H$1>D45,DadosTemp!$H$1<E45),"",1) -> 
A46: 22.53 | B46: 5.696911444 | C46: 32.4548 | D46: 18.92695684 | E46: 26.13304316 | F46: =IF(AND(DadosTemp!$H$1>D46,DadosTemp!$H$1<E46),"",1) -> 
A47: 20.5 | B47: 3.468608431 | C47: 12.03124444 | D47: 18.30625941 | E47: 22.69374059 | F47: =IF(AND(DadosTemp!$H$1>D47,DadosTemp!$H$1<E47),"",1) -> 
A48: 21.9951 | B48: 2.90257665 | C48: 8.424951211 | D48: 20.15934934 | E48: 23.83085066 | F48: =IF(AND(DadosTemp!$H$1>D48,DadosTemp!$H$1<E48),"",1) -> 
A49: 22.036 | B49: 1.84666787 | C49: 3.410182222 | D49: 20.86806469 | E49: 23.20393531 | F49: =IF(AND(DadosTemp!$H$1>D49,DadosTemp!$H$1<E49),"",1) -> 
A50: 21.221 | B50: 2.937347443 | C50: 8.62801 | D50: 19.36325836 | E50: 23.07874164 | F50: =IF(AND(DadosTemp!$H$1>D50,DadosTemp!$H$1<E50),"",1) -> 
A51: 20.231 | B51: 3.210688573 | C51: 10.30852111 | D51: 18.20038225 | E51: 22.26161775 | F51: =IF(AND(DadosTemp!$H$1>D51,DadosTemp!$H$1<E51),"",1) -> 

Sheet MediasAmostra100
A1: Média | B1: Desvio Padrão | C1: Variância | D1: Intervalo | F1: Não contém | G1: =SUM(F2:F51)/50 -> 0
A2: 21.9887 | B2: 3.424863308 | C2: 11.72968868 | D2: =A2-2*(B2/SQRT(100)) -> 21.30372734 | E2: =A2+2*(B2/SQRT(100)) -> 22.67367266 | F2: =IF(AND(DadosTemp!$H$1>D2,DadosTemp!$H$1<E2),"",1) -> 
A3: 21.91191 | B3: 3.085858131 | C3: 9.522520406 | D3: =A3-2*(B3/SQRT(100)) -> 21.29473837 | E3: =A3+2*(B3/SQRT(100)) -> 22.52908163 | F3: =IF(AND(DadosTemp!$H$1>D3,DadosTemp!$H$1<E3),"",1) -> 
A4: 21.99863 | B4: 2.485473752 | C4: 6.177579771 | D4: 21.50153525 | E4: 22.49572475 | F4: =IF(AND(DadosTemp!$H$1>D4,DadosTemp!$H$1<E4),"",1) -> 
A5: 21.9896 | B5: 3.375814203 | C5: 11.39612154 | D5: 21.31443716 | E5: 22.66476284 | F5: =IF(AND(DadosTemp!$H$1>D5,DadosTemp!$H$1<E5),"",1) -> 
A6: 22.13366 | B6: 3.19818332 | C6: 10.22837655 | D6: 21.49402334 | E6: 22.77329666 | F6: =IF(AND(DadosTemp!$H$1>D6,DadosTemp!$H$1<E6),"",1) -> 
A7: 21.48145 | B7: 3.246691984 | C7: 10.54100884 | D7: 20.8321116 | E7: 22.1307884 | F7: =IF(AND(DadosTemp!$H$1>D7,DadosTemp!$H$1<E7),"",1) -> 
A8: 21.77243 | B8: 2.88364485 | C8: 8.315407621 | D8: 21.19570103 | E8: 22.34915897 | F8: =IF(AND(DadosTemp!$H$1>D8,DadosTemp!$H$1<E8),"",1) -> 
A9: 21.61432 | B9: 3.183895942 | C9: 10.13719337 | D9: 20.97754081 | E9: 22.25109919 | F9: =IF(AND(DadosTemp!$H$1>D9,DadosTemp!$H$1<E9),"",1) -> 
A10: 21.57118 | B10: 3.357383383 | C10: 11.27202318 | D10: 20.89970332 | E10: 22.24265668 | F10: =IF(AND(DadosTemp!$H$1>D10,DadosTemp!$H$1<E10),"",1) -> 
A11: 21.55606 | B11: 3.441028648 | C11: 11.84067816 | D11: 20.86785427 | E11: 22.24426573 | F11: =IF(AND(DadosTemp!$H$1>D11,DadosTemp!$H$1<E11),"",1) -> 
A12: 21.43 | B12: 3.330794488 | C12: 11.09419192 | D12: 20.7638411 | E12: 22.0961589 | F12: =IF(AND(DadosTemp!$H$1>D12,DadosTemp!$H$1<E12),"",1) -> 
A13: 21.56948 | B13: 3.251562022 | C13: 10.57265559 | D13: 20.9191676 | E13: 22.2197924 | F13: =IF(AND(DadosTemp!$H$1>D13,DadosTemp!$H$1<E13),"",1) -> 
A14: 21.69174 | B14: 3.315642956 | C14: 10.99348821 | D14: 21.02861141 | E14: 22.35486859 | F14: =IF(AND(DadosTemp!$H$1>D14,DadosTemp!$H$1<E14),"",1) -> 
A15: 21.73896 | B15: 3.426743938 | C15: 11.74257402 | D15: 21.05361121 | E15: 22.42430879 | F15: =IF(AND(DadosTemp!$H$1>D15,DadosTemp!$H$1<E15),"",1) -> 
A16: 21.54544 | B16: 3.311528822 | C16: 10.96622314 | D16: 20.88313424 | E16: 22.20774576 | F16: =IF(AND(DadosTemp!$H$1>D16,DadosTemp!$H$1<E16),"",1) -> 
A17: 21.07322 | B17: 3.426521231 | C17: 11.74104775 | D17: 20.38791575 | E17: 21.75852425 | F17: =IF(AND(DadosTemp!$H$1>D17,DadosTemp!$H$1<E17),"",1) -> 
A18: 22.2037 | B18: 2.8759461 | C18: 8.27106597 | D18: 21.62851078 | E18: 22.77888922 | F18: =IF(AND(DadosTemp!$H$1>D18,DadosTemp!$H$1<E18),"",1) -> 
A19: 21.05247 | B19: 3.495112112 | C19: 12.21580868 | D19: 20.35344758 | E19: 21.75149242 | F19: =IF(AND(DadosTemp!$H$1>D19,DadosTemp!$H$1<E19),"",1) -> 
A20: 21.94856667 | B20: 3.109254145 | C20: 9.667461337 | D20: 21.32671584 | E20: 22.5704175 | F20: =IF(AND(DadosTemp!$H$1>D20,DadosTemp!$H$1<E20),"",1) -> 
A21: 22.01102 | B21: 3.11915081 | C21: 9.729101777 | D21: 21.38718984 | E21: 22.63485016 | F21: =IF(AND(DadosTemp!$H$1>D21,DadosTemp!$H$1<E21),"",1) -> 
A22: 21.18147 | B22: 3.36259705 | C22: 11.30705892 | D22: 20.50895059 | E22: 21.85398941 | F22: =IF(AND(DadosTemp!$H$1>D22,DadosTemp!$H$1<E22),"",1) -> 
A23: 21.10074 | B23: 3.332311521 | C23: 11.10430007 | D23: 20.4342777 | E23: 21.7672023 | F23: =IF(AND(DadosTemp!$H$1>D23,DadosTemp!$H$1<E23),"",1) -> 
A24: 21.11227 | B24: 3.586154787 | C24: 12.86050616 | D24: 20.39503904 | E24: 21.82950096 | F24: =IF(AND(DadosTemp!$H$1>D24,DadosTemp!$H$1<E24),"",1) -> 
A25: 21.89736 | B25: 3.336093704 | C25: 11.1295212 | D25: 21.23014126 | E25: 22.56457874 | F25: =IF(AND(DadosTemp!$H$1>D25,DadosTemp!$H$1<E25),"",1) -> 
A26: 21.83405 | B26: 2.957212359 | C26: 8.745104937 | D26: 21.24260753 | E26: 22.42549247 | F26: =IF(AND(DadosTemp!$H$1>D26,DadosTemp!$H$1<E26),"",1) -> 
A27: 21.119 | B27: 3.333974029 | C27: 11.11538283 | D27: 20.45220519 | E27: 21.78579481 | F27: =IF(AND(DadosTemp!$H$1>D27,DadosTemp!$H$1<E27),"",1) -> 
A28: 21.59071 | B28: 3.159777614 | C28: 9.984194572 | D28: 20.95875448 | E28: 22.22266552 | F28: =IF(AND(DadosTemp!$H$1>D28,DadosTemp!$H$1<E28),"",1) -> 
A29: 21.39855 | B29: 3.180604346 | C29: 10.11624401 | D29: 20.76242913 | E29: 22.03467087 | F29: =IF(AND(DadosTemp!$H$1>D29,DadosTemp!$H$1<E29),"",1) -> 
A30: 21.7984 | B30: 3.179077981 | C30: 10.10653681 | D30: 21.1625844 | E30: 22.4342156 | F30: =IF(AND(DadosTemp!$H$1>D30,DadosTemp!$H$1<E30),"",1) -> 
A31: 21.72169 | B31: 3.087676966 | C31: 9.533749044 | D31: 21.10415461 | E31: 22.33922539 | F31: =IF(AND(DadosTemp!$H$1>D31,DadosTemp!$H$1<E31),"",1) -> 
A32: 21.51624 | B32: 3.441376769 | C32: 11.84307406 | D32: 20.82796465 | E32: 22.20451535 | F32: =IF(AND(DadosTemp!$H$1>D32,DadosTemp!$H$1<E32),"",1) -> 
A33: 21.83406 | B33: 3.229651308 | C33: 10.43064757 | D33: 21.18812974 | E33: 22.47999026 | F33: =IF(AND(DadosTemp!$H$1>D33,DadosTemp!$H$1<E33),"",1) -> 
A34: 21.800236 | B34: 3.515154729 | C34: 12.35631277 | D34: 21.09720505 | E34: 22.50326695 | F34: =IF(AND(DadosTemp!$H$1>D34,DadosTemp!$H$1<E34),"",1) -> 
A35: 21.80499 | B35: 2.967328586 | C35: 8.805038939 | D35: 21.21152428 | E35: 22.39845572 | F35: =IF(AND(DadosTemp!$H$1>D35,DadosTemp!$H$1<E35),"",1) -> 
A36: 21.87509 | B36: 3.621118961 | C36: 13.11250253 | D36: 21.15086621 | E36: 22.59931379 | F36: =IF(AND(DadosTemp!$H$1>D36,DadosTemp!$H$1<E36),"",1) -> 
A37: 21.40549 | B37: 2.832464407 | C37: 8.022854616 | D37: 20.83899712 | E37: 21.97198288 | F37: =IF(AND(DadosTemp!$H$1>D37,DadosTemp!$H$1<E37),"",1) -> 
A38: 21.41613 | B38: 3.187542594 | C38: 10.16042779 | D38: 20.77862148 | E38: 22.05363852 | F38: =IF(AND(DadosTemp!$H$1>D38,DadosTemp!$H$1<E38),"",1) -> 
A39: 21.49078 | B39: 3.27597215 | C39: 10.73199353 | D39: 20.83558557 | E39: 22.14597443 | F39: =IF(AND(DadosTemp!$H$1>D39,DadosTemp!$H$1<E39),"",1) -> 
A40: 21.72836 | B40: 3.209279687 | C40: 10.29947611 | D40: 21.08650406 | E40: 22.37021594 | F40: =IF(AND(DadosTemp!$H$1>D40,DadosTemp!$H$1<E40),"",1) -> 
A41: 21.60994 | B41: 3.256221637 | C41: 10.60297935 | D41: 20.95869567 | E41: 22.26118433 | F41: =IF(AND(DadosTemp!$H$1>D41,DadosTemp!$H$1<E41),"",1) -> 
A42: 22.0139 | B42: 3.175420085 | C42: 10.08329272 | D42: 21.37881598 | E42: 22.64898402 | F42: =IF(AND(DadosTemp!$H$1>D42,DadosTemp!$H$1<E42),"",1) -> 
A43: 21.8206 | B43: 2.995058496 | C43: 8.970375394 | D43: 21.2215883 | E43: 22.4196117 | F43: =IF(AND(DadosTemp!$H$1>D43,DadosTemp!$H$1<E43),"",1) -> 
A44: 21.63451 | B44: 3.098341568 | C44: 9.599720475 | D44: 21.01484169 | E44: 22.25417831 | F44: =IF(AND(DadosTemp!$H$1>D44,DadosTemp!$H$1<E44),"",1) -> 
A45: 21.53128 | B45: 3.50524591 | C45: 12.28674889 | D45: 20.83023082 | E45: 22.23232918 | F45: =IF(AND(DadosTemp!$H$1>D45,DadosTemp!$H$1<E45),"",1) -> 
A46: 21.52094 | B46: 3.364689881 | C46: 11.321138 | D46: 20.84800202 | E46: 22.19387798 | F46: =IF(AND(DadosTemp!$H$1>D46,DadosTemp!$H$1<E46),"",1) -> 
A47: 21.5625 | B47: 3.807882143 | C47: 14.49996641 | D47: 20.80092357 | E47: 22.32407643 | F47: =IF(AND(DadosTemp!$H$1>D47,DadosTemp!$H$1<E47),"",1) -> 
A48: 21.82117 | B48: 2.871247137 | C48: 8.244060122 | D48: 21.24692057 | E48: 22.39541943 | F48: =IF(AND(DadosTemp!$H$1>D48,DadosTemp!$H$1<E48),"",1) -> 
A49: 21.55793 | B49: 3.273164423 | C49: 10.71360534 | D49: 20.90329712 | E49: 22.21256288 | F49: =IF(AND(DadosTemp!$H$1>D49,DadosTemp!$H$1<E49),"",1) -> 
A50: 21.93318 | B50: 3.310233601 | C50: 10.95764649 | D50: 21.27113328 | E50: 22.59522672 | F50: =IF(AND(DadosTemp!$H$1>D50,DadosTemp!$H$1<E50),"",1) -> 
A51: 21.46551 | B51: 2.990246091 | C51: 8.941571687 | D51: 20.86746078 | E51: 22.06355922 | F51: =IF(AND(DadosTemp!$H$1>D51,DadosTemp!$H$1<E51),"",1) -> 
